{"text_format":"1","workbook":"xlsx","n_sheets":1,"sheets":["2016"],"not_rendered":{"charts":1,"images":0,"macros":1,"external_links":0,"defined_names":2,"comments":1,"pivot_tables":0},"unopened":[],"bounds":{"document_bytes":16777216,"sheet_cells":100000,"rows_first":2000,"rows_last":500,"rows_between":2000,"halvings":0,"cell_chars":16384,"cell_head_chars":4096},"cells_cut":0,"cells_raw":0,"read":"whole","date_system":"1900"}

{"sheet":"2016","index":0,"n_rows":1399,"n_cols":80,"rows_kept":1399,"cut":false,"hidden":false,"merged":[[419,23,419,27],[420,23,420,27],[421,23,421,27],[422,23,422,27],[423,23,423,27],[448,23,448,27],[449,23,449,27],[450,23,450,27],[424,23,424,27],[425,23,425,27],[426,23,426,27],[428,23,428,27],[429,23,429,27],[430,23,430,27],[431,23,431,27],[432,23,432,27],[447,23,447,27],[94,18,94,22],[95,18,95,22],[96,18,96,22],[97,18,97,22],[98,18,98,22],[415,23,415,27],[416,23,416,27],[417,23,417,27],[418,23,418,27],[81,18,81,22],[82,18,82,22],[83,18,83,22],[84,18,84,22],[85,18,85,22],[90,18,90,22],[91,18,91,22],[92,18,92,22],[93,18,93,22],[86,18,86,22],[87,18,87,22],[88,18,88,22],[89,18,89,22],[74,18,74,22],[73,18,73,22],[72,18,72,22],[71,18,71,22],[70,18,70,22],[69,18,69,22],[80,18,80,22],[79,18,79,22],[78,18,78,22],[77,18,77,22],[1426,4,1448,11],[1398,6,1398,8],[1137,1,1137,4],[1137,5,1137,8],[1138,1,1138,4],[1138,5,1138,8],[1198,4,1198,11],[1199,4,1221,11],[1134,1,1134,4],[1134,5,1134,8],[1135,1,1135,4],[1135,5,1135,8],[1136,1,1136,4],[1136,5,1136,8],[1128,1,1128,4],[1128,5,1128,8],[1129,5,1129,8],[1132,1,1132,4],[1132,5,1132,8],[1133,1,1133,4],[1133,5,1133,8],[1125,1,1125,4],[1125,5,1125,8],[1126,1,1126,4],[1126,5,1126,8],[1127,1,1127,4],[1127,5,1127,8],[1123,1,1123,4],[1123,5,1123,8],[1124,1,1124,4],[1124,5,1124,8],[1120,1,1120,4],[1120,5,1120,8],[1121,1,1121,4],[1121,5,1121,8],[1122,1,1122,4],[1122,5,1122,8],[1114,1,1114,4],[1114,5,1114,8],[1115,1,1115,4],[1115,5,1115,8],[1116,1,1116,4],[1116,5,1116,8],[1118,1,1118,4],[1118,5,1118,8],[1119,1,1119,4],[1119,5,1119,8],[1117,1,1117,4],[1117,5,1117,8],[1111,1,1111,4],[1111,5,1111,8],[1112,1,1112,4],[1112,5,1112,8],[1113,1,1113,4],[1113,5,1113,8],[1108,1,1108,4],[1108,5,1108,8],[1109,1,1109,4],[1109,5,1109,8],[1110,1,1110,4],[1110,5,1110,8],[1016,1,1016,4],[1021,1,1021,4],[1106,1,1106,4],[1106,5,1106,8],[1107,1,1107,4],[1107,5,1107,8],[955,2,956,2],[955,3,956,3],[955,4,956,4],[955,5,956,5],[955,6,956,6],[959,2,960,2],[959,3,960,3],[959,4,960,4],[959,5,960,5],[959,6,960,6],[951,2,952,2],[951,3,952,3],[951,4,952,4],[951,5,952,5],[951,6,952,6],[941,23,941,27],[942,23,942,27],[943,23,943,27],[944,23,944,27],[945,23,945,27],[946,23,946,27],[947,23,947,27],[948,23,948,27],[949,23,949,27],[938,23,938,27],[939,23,939,27],[940,23,940,27],[917,23,917,27],[918,23,918,27],[919,23,919,27],[920,23,920,27],[921,23,921,27],[922,23,922,27],[923,23,923,27],[924,23,924,27],[925,23,925,27],[926,23,926,27],[927,23,927,27],[928,23,928,27],[929,23,929,27],[930,23,930,27],[931,23,931,27],[932,23,932,27],[933,23,933,27],[934,23,934,27],[935,23,935,27],[936,23,936,27],[937,23,937,27],[908,2,909,2],[908,3,909,3],[908,4,909,4],[908,5,909,5],[908,6,909,6],[912,2,913,2],[912,3,913,3],[912,4,913,4],[912,5,913,5],[912,6,913,6],[904,2,905,2],[904,3,905,3],[904,4,905,4],[904,5,905,5],[904,6,905,6],[894,23,894,27],[895,23,895,27],[896,23,896,27],[897,23,897,27],[898,23,898,27],[899,23,899,27],[900,23,900,27],[901,23,901,27],[902,23,902,27],[891,23,891,27],[892,23,892,27],[893,23,893,27],[870,23,870,27],[871,23,871,27],[872,23,872,27],[873,23,873,27],[874,23,874,27],[875,23,875,27],[876,23,876,27],[877,23,877,27],[878,23,878,27],[879,23,879,27],[880,23,880,27],[881,23,881,27],[882,23,882,27],[883,23,883,27],[884,23,884,27],[885,23,885,27],[886,23,886,27],[887,23,887,27],[888,23,888,27],[889,23,889,27],[890,23,890,27],[861,2,862,2],[861,3,862,3],[861,4,862,4],[861,5,862,5],[861,6,862,6],[865,2,866,2],[865,3,866,3],[865,4,866,4],[865,5,866,5],[865,6,866,6],[857,2,858,2],[857,3,858,3],[857,4,858,4],[857,5,858,5],[857,6,858,6],[847,23,847,27],[848,23,848,27],[849,23,849,27],[850,23,850,27],[851,23,851,27],[852,23,852,27],[853,23,853,27],[854,23,854,27],[855,23,855,27],[844,23,844,27],[845,23,845,27],[846,23,846,27],[823,23,823,27],[824,23,824,27],[825,23,825,27],[826,23,826,27],[827,23,827,27],[828,23,828,27],[829,23,829,27],[830,23,830,27],[831,23,831,27],[832,23,832,27],[833,23,833,27],[834,23,834,27],[835,23,835,27],[836,23,836,27],[837,23,837,27],[838,23,838,27],[839,23,839,27],[840,23,840,27],[841,23,841,27],[842,23,842,27],[843,23,843,27],[814,2,815,2],[814,3,815,3],[814,4,815,4],[814,5,815,5],[814,6,815,6],[818,2,819,2],[818,3,819,3],[818,4,819,4],[818,5,819,5],[818,6,819,6],[810,2,811,2],[810,3,811,3],[810,4,811,4],[810,5,811,5],[810,6,811,6],[800,23,800,27],[801,23,801,27],[802,23,802,27],[803,23,803,27],[804,23,804,27],[805,23,805,27],[806,23,806,27],[807,23,807,27],[808,23,808,27],[797,23,797,27],[798,23,798,27],[799,23,799,27],[776,23,776,27],[777,23,777,27],[778,23,778,27],[779,23,779,27],[780,23,780,27],[781,23,781,27],[782,23,782,27],[783,23,783,27],[784,23,784,27],[785,23,785,27],[786,23,786,27],[787,23,787,27],[788,23,788,27],[789,23,789,27],[790,23,790,27],[791,23,791,27],[792,23,792,27],[793,23,793,27],[794,23,794,27],[795,23,795,27],[796,23,796,27],[767,2,768,2],[767,3,768,3],[767,4,768,4],[767,5,768,5],[767,6,768,6],[771,2,772,2],[771,3,772,3],[771,4,772,4],[771,5,772,5],[771,6,772,6],[763,2,764,2],[763,3,764,3],[763,4,764,4],[763,5,764,5],[763,6,764,6],[753,23,753,27],[754,23,754,27],[755,23,755,27],[756,23,756,27],[757,23,757,27],[758,23,758,27],[759,23,759,27],[760,23,760,27],[761,23,761,27],[750,23,750,27],[751,23,751,27],[752,23,752,27],[729,23,729,27],[730,23,730,27],[731,23,731,27],[732,23,732,27],[733,23,733,27],[734,23,734,27],[735,23,735,27],[736,23,736,27],[737,23,737,27],[738,23,738,27],[739,23,739,27],[740,23,740,27],[741,23,741,27],[742,23,742,27],[743,23,743,27],[744,23,744,27],[745,23,745,27],[746,23,746,27],[747,23,747,27],[748,23,748,27],[749,23,749,27],[720,2,721,2],[720,3,721,3],[720,4,721,4],[720,5,721,5],[720,6,721,6],[724,2,725,2],[724,3,725,3],[724,4,725,4],[724,5,725,5],[724,6,725,6],[716,2,717,2],[716,3,717,3],[716,4,717,4],[716,5,717,5],[716,6,717,6],[706,23,706,27],[707,23,707,27],[708,23,708,27],[709,23,709,27],[710,23,710,27],[711,23,711,27],[712,23,712,27],[713,23,713,27],[714,23,714,27],[703,23,703,27],[704,23,704,27],[705,23,705,27],[682,23,682,27],[683,23,683,27],[684,23,684,27],[685,23,685,27],[686,23,686,27],[687,23,687,27],[688,23,688,27],[689,23,689,27],[690,23,690,27],[691,23,691,27],[692,23,692,27],[693,23,693,27],[694,23,694,27],[695,23,695,27],[696,23,696,27],[697,23,697,27],[698,23,698,27],[699,23,699,27],[700,23,700,27],[701,23,701,27],[702,23,702,27],[673,2,674,2],[673,3,674,3],[673,4,674,4],[673,5,674,5],[673,6,674,6],[677,2,678,2],[677,3,678,3],[677,4,678,4],[677,5,678,5],[677,6,678,6],[669,2,670,2],[669,3,670,3],[669,4,670,4],[669,5,670,5],[669,6,670,6],[659,23,659,27],[660,23,660,27],[661,23,661,27],[662,23,662,27],[663,23,663,27],[664,23,664,27],[665,23,665,27],[666,23,666,27],[667,23,667,27],[656,23,656,27],[657,23,657,27],[658,23,658,27],[635,23,635,27],[636,23,636,27],[637,23,637,27],[638,23,638,27],[639,23,639,27],[640,23,640,27],[641,23,641,27],[642,23,642,27],[643,23,643,27],[644,23,644,27],[645,23,645,27],[646,23,646,27],[647,23,647,27],[648,23,648,27],[649,23,649,27],[650,23,650,27],[651,23,651,27],[652,23,652,27],[653,23,653,27],[654,23,654,27],[655,23,655,27],[626,2,627,2],[626,3,627,3],[626,4,627,4],[626,5,627,5],[626,6,627,6],[630,2,631,2],[630,3,631,3],[630,4,631,4],[630,5,631,5],[630,6,631,6],[622,2,623,2],[622,3,623,3],[622,4,623,4],[622,5,623,5],[622,6,623,6],[612,23,612,27],[613,23,613,27],[614,23,614,27],[615,23,615,27],[616,23,616,27],[617,23,617,27],[618,23,618,27],[619,23,619,27],[620,23,620,27],[609,23,609,27],[610,23,610,27],[611,23,611,27],[588,23,588,27],[589,23,589,27],[590,23,590,27],[591,23,591,27],[592,23,592,27],[593,23,593,27],[594,23,594,27],[595,23,595,27],[596,23,596,27],[597,23,597,27],[598,23,598,27],[599,23,599,27],[600,23,600,27],[601,23,601,27],[602,23,602,27],[603,23,603,27],[604,23,604,27],[605,23,605,27],[606,23,606,27],[607,23,607,27],[608,23,608,27],[579,2,580,2],[579,3,580,3],[579,4,580,4],[579,5,580,5],[579,6,580,6],[583,2,584,2],[583,3,584,3],[583,4,584,4],[583,5,584,5],[583,6,584,6],[575,2,576,2],[575,3,576,3],[575,4,576,4],[575,5,576,5],[575,6,576,6],[565,23,565,27],[566,23,566,27],[567,23,567,27],[568,23,568,27],[569,23,569,27],[570,23,570,27],[571,23,571,27],[572,23,572,27],[562,23,562,27],[563,23,563,27],[564,23,564,27],[542,23,542,27],[543,23,543,27],[544,23,544,27],[545,23,545,27],[546,23,546,27],[547,23,547,27],[548,23,548,27],[549,23,549,27],[550,23,550,27],[551,23,551,27],[552,23,552,27],[553,23,553,27],[554,23,554,27],[555,23,555,27],[556,23,556,27],[557,23,557,27],[558,23,558,27],[559,23,559,27],[560,23,560,27],[561,23,561,27],[532,2,533,2],[532,3,533,3],[532,4,533,4],[532,5,533,5],[532,6,533,6],[536,2,537,2],[536,3,537,3],[536,4,537,4],[536,5,537,5],[536,6,537,6],[528,2,529,2],[528,3,529,3],[528,4,529,4],[528,5,529,5],[528,6,529,6],[518,23,518,27],[519,23,519,27],[520,23,520,27],[521,23,521,27],[522,23,522,27],[523,23,523,27],[524,23,524,27],[525,23,525,27],[526,23,526,27],[515,23,515,27],[516,23,516,27],[517,23,517,27],[494,23,494,27],[495,23,495,27],[496,23,496,27],[497,23,497,27],[498,23,498,27],[499,23,499,27],[500,23,500,27],[501,23,501,27],[502,23,502,27],[503,23,503,27],[504,23,504,27],[505,23,505,27],[506,23,506,27],[507,23,507,27],[508,23,508,27],[509,23,509,27],[510,23,510,27],[511,23,511,27],[512,23,512,27],[513,23,513,27],[514,23,514,27],[485,2,486,2],[485,3,486,3],[485,4,486,4],[485,5,486,5],[485,6,486,6],[489,2,490,2],[489,3,490,3],[489,4,490,4],[489,5,490,5],[489,6,490,6],[481,2,482,2],[481,3,482,3],[481,4,482,4],[481,5,482,5],[481,6,482,6],[471,23,471,27],[472,23,472,27],[473,23,473,27],[474,23,474,27],[475,23,475,27],[476,23,476,27],[477,23,477,27],[478,23,478,27],[479,23,479,27],[468,23,468,27],[469,23,469,27],[470,23,470,27],[451,23,451,27],[452,23,452,27],[453,23,453,27],[454,23,454,27],[455,23,455,27],[456,23,456,27],[457,23,457,27],[458,23,458,27],[459,23,459,27],[460,23,460,27],[461,23,461,27],[462,23,462,27],[463,23,463,27],[464,23,464,27],[465,23,465,27],[466,23,466,27],[467,23,467,27],[438,2,439,2],[438,3,439,3],[438,4,439,4],[438,5,439,5],[438,6,439,6],[442,2,443,2],[442,3,443,3],[442,4,443,4],[442,5,443,5],[442,6,443,6],[434,2,435,2],[434,3,435,3],[434,4,435,4],[434,5,435,5],[434,6,435,6],[427,23,427,27],[239,1,239,3],[240,1,240,3],[241,1,241,3],[400,23,400,27],[401,23,401,27],[402,23,402,27],[403,23,403,27],[404,23,404,27],[405,23,405,27],[406,23,406,27],[407,23,407,27],[408,23,408,27],[409,23,409,27],[410,23,410,27],[411,23,411,27],[412,23,412,27],[413,23,413,27],[414,23,414,27],[236,1,236,3],[237,1,237,3],[238,1,238,3],[236,17,236,21],[237,17,237,21],[238,17,238,21],[239,17,239,21],[240,17,240,21],[241,17,241,21],[233,1,233,3],[234,1,234,3],[235,1,235,3],[230,1,230,3],[231,1,231,3],[232,1,232,3],[230,17,230,21],[231,17,231,21],[232,17,232,21],[233,17,233,21],[234,17,234,21],[235,17,235,21],[227,1,227,3],[228,1,228,3],[229,1,229,3],[224,1,224,3],[225,1,225,3],[226,1,226,3],[224,17,224,21],[225,17,225,21],[226,17,226,21],[227,17,227,21],[228,17,228,21],[229,17,229,21],[221,1,221,3],[222,1,222,3],[223,1,223,3],[185,3,185,5],[186,1,186,5],[189,19,189,25],[220,1,220,3],[185,19,185,23],[186,19,186,23],[220,22,220,24],[220,17,220,21],[221,17,221,21],[222,17,222,21],[223,17,223,21],[182,3,182,5],[183,3,183,5],[184,3,184,5],[179,3,179,5],[180,3,180,5],[181,3,181,5],[179,19,179,23],[180,19,180,23],[181,19,181,23],[182,19,182,23],[183,19,183,23],[184,19,184,23],[176,3,176,5],[177,3,177,5],[178,3,178,5],[173,3,173,5],[174,3,174,5],[175,3,175,5],[173,19,173,23],[174,19,174,23],[175,19,175,23],[176,19,176,23],[177,19,177,23],[178,19,178,23],[170,3,170,5],[171,3,171,5],[172,3,172,5],[167,3,167,5],[168,3,168,5],[169,3,169,5],[167,19,167,23],[168,19,168,23],[169,19,169,23],[170,19,170,23],[171,19,171,23],[172,19,172,23],[164,3,164,5],[165,3,165,5],[166,3,166,5],[161,3,161,5],[162,3,162,5],[163,3,163,5],[161,19,161,23],[162,19,162,23],[163,19,163,23],[164,19,164,23],[165,19,165,23],[166,19,166,23],[158,3,158,5],[159,3,159,5],[160,3,160,5],[155,3,155,5],[156,3,156,5],[157,3,157,5],[155,19,155,23],[156,19,156,23],[157,19,157,23],[158,19,158,23],[159,19,159,23],[160,19,160,23],[152,3,152,5],[153,3,153,5],[154,3,154,5],[149,3,149,5],[150,3,150,5],[151,3,151,5],[149,19,149,23],[150,19,150,23],[151,19,151,23],[152,19,152,23],[153,19,153,23],[154,19,154,23],[146,3,146,5],[147,3,147,5],[148,3,148,5],[143,3,143,5],[144,3,144,5],[145,3,145,5],[143,19,143,23],[144,19,144,23],[145,19,145,23],[146,19,146,23],[147,19,147,23],[148,19,148,23],[140,3,140,5],[141,3,141,5],[142,3,142,5],[137,3,137,5],[138,3,138,5],[139,3,139,5],[137,19,137,23],[138,19,138,23],[139,19,139,23],[140,19,140,23],[141,19,141,23],[142,19,142,23],[134,3,134,5],[135,3,135,5],[136,3,136,5],[131,3,131,5],[132,3,132,5],[133,3,133,5],[131,19,131,23],[132,19,132,23],[133,19,133,23],[134,19,134,23],[135,19,135,23],[136,19,136,23],[128,3,128,5],[129,3,129,5],[130,3,130,5],[125,3,125,5],[126,3,126,5],[127,3,127,5],[125,19,125,23],[126,19,126,23],[127,19,127,23],[128,19,128,23],[129,19,129,23],[130,19,130,23],[97,2,97,4],[98,1,98,4],[93,2,93,4],[94,2,94,4],[95,2,95,4],[77,0,98,0],[77,2,77,4],[78,2,78,4],[79,2,79,4],[81,2,81,4],[82,2,82,4],[88,2,88,4],[89,2,89,4],[90,2,90,4],[83,2,83,4],[84,2,84,4],[85,2,85,4],[86,2,86,4],[87,2,87,4],[80,2,80,4],[91,2,91,4],[92,2,92,4],[1,2,1,15],[8,1,8,2],[10,1,10,2],[12,1,12,2],[14,1,15,2],[40,1,40,2],[54,2,54,3],[73,1,73,3],[96,2,96,4],[65,2,65,4],[59,1,59,4],[61,2,61,3],[62,2,62,4],[56,2,56,4],[57,2,57,4],[58,2,58,4],[63,2,63,4],[16,69,16,72],[16,73,16,76],[16,77,16,80],[55,0,72,0],[55,2,55,3],[64,2,64,4],[66,2,66,4],[67,1,67,4],[55,18,55,22],[58,18,58,22],[57,18,57,22],[56,18,56,22],[59,18,59,22],[60,18,60,22],[67,18,67,22],[66,18,66,22],[65,18,65,22],[64,18,64,22],[63,18,63,22],[62,18,62,22],[61,18,61,22],[16,33,16,36],[16,37,16,40],[16,41,16,44],[16,45,16,48],[16,49,16,52],[16,57,16,60],[16,53,16,56],[16,61,16,64],[16,65,16,68]]}
[{"$f":"CELL(\"dateiname\")","v":"D:\\Mutter-Software\\Kostenkontrolle Haushaltsbuch\\Version 2.03\\Originaldatei KKHB 2.03\\[Kostenkontrolle-Haushaltsbuch_V2.03.xlsm]2016"},"  Kostenkontrolle-Haushaltsbuch   -   Version 2.03",null,null,null,null,null,{"$f":"TODAY()","v":"2016-04-01"},null,null,null,0,null,null,null,"Lizenz-Nr.:",{"$f":"IF(Q2=1,Q3,\"Testversion\")","v":"Testversion"}]
[null,null,null,null,null,null,null,null,null,null,null,null,null,null,null,null,{"$f":"IF(F1140=TRUE,1,0)","v":0}]
[null,null,null,null,null,null,null,null,null,null,null,null,null,null,null,null,{"$f":"F1139","v":0}]
[null,null,null,null,null,null,null,null,null,null,null,null,null,null,null,null,null,null,null,null,null,null,null,null,{"$f":"F1109","v":"N"},null,"Fremdwährung J/N:",null,null,{"$f":"F1109","v":"N"},null,null,null,"Einnahmen","Fixe Ausgaben","var. Audgaben",null,"Saldo"]
[null,"Überblick",null,{"$f":"RIGHT(CELL(\"dateiname\",A1),LEN(A1)-FIND(\"]\",A1))","v":"2016"},null,null,null,null,null,null,null,null,null,null,null,null,null,null,null,null,null,null,null,null,null,null,"Fremdwährungssymbol:",null,null,{"$f":"F1110","v":0},null,null,"Januar",{"$f":"D8","v":2480.71},{"$f":"D10","v":1293.5},{"$f":"D14","v":680.39},null,{"$f":"AH5-AI5-AJ5","v":506.82000000000005}]
[null,null,null,"Januar","Februar","März","April","Mai","Juni","Juli","August","September","Oktober","November","Dezember","Summe",null,null,null,null,null,null,null,null,null,null,"Hauswährung",null,null,{"$f":"F1108","v":"€"},null,null,"Februar",{"$f":"E8","v":2330.71},{"$f":"E10","v":993.5},{"$f":"E14","v":2302.6},null,{"$f":"AH6-AI6-AJ6","v":-965.38999999999987}]
[null,null,null,null,null,null,null,null,null,null,null,null,null,null,null,null,null,null,null,null,null,null,null,null,null,null,null,null,null,null,null,null,"März",{"$f":"F8","v":2330.71},{"$f":"F10","v":1257.5},{"$f":"F14","v":959.3900000000001},null,113.81999999999994]
[null,"1  Einnahmen  ",null,{"$f":"F99","v":2480.71},{"$f":"G99","v":2330.71},{"$f":"H99","v":2330.71},2480.71,2330.71,2330.71,2480.71,2330.71,2330.71,2480.71,2330.71,2330.71,{"$f":"SUM(D8:O8)","v":28568.519999999993},{"$f":"F1108","v":"€"},null,null,null,null,null,null,null,{"$f":"IF(F1140=TRUE,1,0)","v":0},null,null,null,null,{"$f":"IF(F1140=TRUE,1,0)","v":0},null,null,"April",{"$f":"G8","v":2480.71},{"$f":"G10","v":1088.5},{"$f":"G14","v":0},null,1392.21]
[null,null,null,null,null,null,null,null,null,null,null,null,null,null,null,null,null,null,null,null,null,null,null,null,null,null,null,null,null,null,null,null,"Mai",{"$f":"H8","v":2330.71},{"$f":"H10","v":988.5},{"$f":"H14","v":0},null,1342.21]
[null,"2  Fixe Ausgaben",null,{"$f":"SUM(G127:G186)","v":1293.5},{"$f":"SUM(H127:H186)","v":993.5},{"$f":"SUM(I127:I186)","v":1257.5},1088.5,988.5,1002.5,1003.5,993.5,997.5,1008.5,1158.5,1002.5,12788,{"$f":"F1108","v":"€"},null,null,null,null,null,null,null,null,null,null,null,null,null,null,null,"Juni",{"$f":"I8","v":2330.71},{"$f":"I10","v":1002.5},{"$f":"I14","v":0},null,1328.21]
[null,null,null,null,null,null,null,null,null,null,null,null,null,null,null,null,null," ",null,null,null,null,null,null,null,null,null,null,null,null,null,null,"Juli",{"$f":"J8","v":2480.71},{"$f":"J10","v":1003.5},{"$f":"J14","v":0},null,1477.21]
[null,"3  Budget    ",null,{"$f":"D8-D10","v":1187.21},{"$f":"E8-E10","v":1337.21},1073.21,1392.21,1342.21,1328.21,1477.21,1337.21,1333.21,1472.21,1172.21,1328.21,{"$f":"P8-P10","v":15780.519999999993},{"$f":"F1108","v":"€"},null,null,null,null,null,null,null,null,null,null,null,null,null,null,null,"August",{"$f":"K8","v":2330.71},{"$f":"K10","v":993.5},{"$f":"K14","v":0},null,1337.21]
[null,null,null,null,null,null,null,null,null,null,null,null,null,null,null,null,null,null,null,null,null,null,null,null,null,null,null,null,null,null,null,null,"September",{"$f":"L8","v":2330.71},{"$f":"L10","v":997.5},{"$f":"L14","v":0},null,1333.21]
[null,"4  Var. Ausgaben",null,{"$f":"E242","v":680.39},{"$f":"F242","v":2302.6},{"$f":"G242","v":959.3900000000001},0,0,0,0,0,0,0,0,0,{"$f":"SUM(D14:O14)","v":3942.38},{"$f":"F1108","v":"€"},null,null,null,null,null,null,null,null,null,null,null,null,null,null,null,"Oktober",{"$f":"M8","v":2480.71},{"$f":"M10","v":1008.5},{"$f":"M14","v":0},null,1472.21]
[null,null,null,null,null,null,null,null,null,null,null,null,null,null,null,null,null,null,null,null,null,null,null,null,null,null,null,null,null,null,null,null,"November",{"$f":"N8","v":2330.71},{"$f":"N10","v":1158.5},{"$f":"N14","v":0},null,1172.21]
[null,null,null,null,null,null,null,null,null,null,null,null,null,null,null,null,null,null,null,null,null,null,null,null,null,null,null,null,null,null,null,null,"Dezember",{"$f":"O8","v":2330.71},{"$f":"O10","v":1002.5},{"$f":"O14","v":0},null,1328.21]
[null,"5  Saldo",null,{"$f":"D8-D10-D14","v":506.82000000000005},{"$f":"E8-E10-E14","v":-965.38999999999987},113.81999999999994,1392.21,1342.21,1328.21,1477.21,1337.21,1333.21,1472.21,1172.21,1328.21,11838.139999999992,{"$f":"F1108","v":"€"},null,null,null,null,null,null,null,null,null,null,null,null,null,null,null,null,"Januar",null,null,null,"Februar",null,null,null,"März",null,null,null,"April",null,null,null,"Mai",null,null,null,"Juni",null,null,null,"Juli",null,null,null,"August",null,null,null,"September",null,null,null,"Oktober",null,null,null,"November",null,null,null,"Dezember"]
[null,null,null,null,null,null,null,null,null,null,null,null,null,null,null,null,null,null,null,null,null,null,null,null,null,null,null,null,null,null,null,null,null,"Einnahmen","Ausgaben","Saldo",null,"Einnahmen","Ausgaben","Saldo",null,"Einnahmen","Ausgaben","Saldo",null,"Einnahmen","Ausgaben","Saldo",null,"Einnahmen","Ausgaben","Saldo",null,"Einnahmen","Ausgaben","Saldo",null,"Einnahmen","Ausgaben","Saldo",null,"Einnahmen","Ausgaben","Saldo",null,"Einnahmen","Ausgaben","Saldo",null,"Einnahmen","Ausgaben","Saldo",null,"Einnahmen","Ausgaben","Saldo",null,"Einnahmen","Ausgaben","Saldo"]
[null,null,null,null,null,null,null,null,null,null,null,null,null,null,null,null,null,null,null,null,null,null,null,null,null,null,null,null,null,null,null,null,"Einnahmen",{"$f":"AH5","v":2480.71},null,null,null,{"$f":"AH6","v":2330.71},null,null,null,{"$f":"AH7","v":2330.71},null,null,null,{"$f":"AH8","v":2480.71},null,null,null,{"$f":"AH9","v":2330.71},null,null,null,{"$f":"AH10","v":2330.71},null,null,null,{"$f":"AH11","v":2480.71},null,null,null,{"$f":"AH12","v":2330.71},null,null,null,{"$f":"AH13","v":2330.71},null,null,null,{"$f":"AH14","v":2480.71},null,null,null,{"$f":"AH15","v":2330.71},null,null,null,{"$f":"AH16","v":2330.71}]
[null,null,null,null,null,null,null,null,null,null,null,null,null,null,null,null,null,null,null,null,null,null,null,null,null,null,null,null,null,null,null,null,"fixe Ausgaben",null,{"$f":"AI5","v":1293.5},null,null,null,{"$f":"AI6","v":993.5},null,null,null,{"$f":"AI7","v":1257.5},null,null,null,{"$f":"AI8","v":1088.5},null,null,null,{"$f":"AI9","v":988.5},null,null,null,{"$f":"AI10","v":1002.5},null,null,null,{"$f":"AI11","v":1003.5},null,null,null,{"$f":"AI12","v":993.5},null,null,null,{"$f":"AI13","v":997.5},null,null,null,{"$f":"AI14","v":1008.5},null,null,null,{"$f":"AI15","v":1158.5},null,null,null,{"$f":"AI16","v":1002.5}]
[null,null,null,null,null,null,null,null,null,null,null,null,null,null,null,null,null,null,null,null,null,null,null,null,null,null,null,null,null,null,null,null,"var. Ausgaben",null,{"$f":"AJ5","v":680.39},null,null,null,{"$f":"AJ6","v":2302.6},null,null,null,{"$f":"AJ7","v":959.3900000000001},null,null,null,{"$f":"AJ8","v":0},null,null,null,{"$f":"AJ9","v":0},null,null,null,{"$f":"AJ10","v":0},null,null,null,{"$f":"AJ11","v":0},null,null,null,{"$f":"AJ12","v":0},null,null,null,{"$f":"AJ13","v":0},null,null,null,{"$f":"AJ14","v":0},null,null,null,{"$f":"AJ15","v":0},null,null,null,{"$f":"AJ16","v":0}]
[null,null,null,null,null,null,null,null,null,null,null,null,null,null,null,null,null,null,null,null,null,null,null,null,null,null,null,null,null,null,null,null,"Saldo +",null,null,{"$f":"AL5","v":506.82000000000005},null,null,null,{"$f":"AL6","v":-965.38999999999987},null,null,null,{"$f":"AL7","v":113.81999999999994},null,null,null,{"$f":"AL8","v":1392.21},null,null,null,{"$f":"AL9","v":1342.21},null,null,null,{"$f":"AL10","v":1328.21},null,null,null,{"$f":"AL11","v":1477.21},null,null,null,{"$f":"AL12","v":1337.21},null,null,null,{"$f":"AL13","v":1333.21},null,null,null,{"$f":"AL14","v":1472.21},null,null,null,{"$f":"AL15","v":1172.21},null,null,null,{"$f":"AL16","v":1328.21}]
[]
[]
[]
[]
[]
[]
[]
[]
[]
[]
[]
[]
[]
[]
[null,null,null,null,null,null,null,null,null,null,null,null,null,null,null,null,"mutter-software.de          Seite 1"]
[]
[]
[]
[null,"Bemerkungen:"]
[]
[]
[]
[]
[]
[null,null,null,null,null,null,null,null,null,null,null,null,null,null,null,null,"www.alle-meine-vorlagen.de      Seite 1"]
[]
[]
[null,"  Kostenkontrolle-Haushaltsbuch   -   Version 2.03",null,null,null,null,null,{"$f":"TODAY()","v":"2016-04-01"}]
[]
[]
[null,null,null,null,null,null,null,null,null,null,null,null,null,null,null,null,{"$f":"IF(AD8=1,\"\",\"Testversion\")","v":"Testversion"}]
[null,1,"Einnahmen und Ausgaben in Fremdwährung",null,null,null,null,{"$f":"AD5","v":0}]
[null,null,"Umrechnungskurs Währung monatlich in:",null,{"$f":"AD6","v":"€"},1.05,1.05,1.05,1.05,1.05,1.05,1.05,1.05,1.05,1.05,1.05,1.05]
["             Fremdwährung","Tag","Einnahmen Fremdwährung",null,{"$f":"AD5","v":0},"Januar","Februar","März","April","Mai","Juni","Juli","August","September","Oktober","November ","Dezember","Summe","Bemerkungen"]
[null,1,"Gehalt",null,null,2900,2900,2900,2900,2900,2900,2900,2900,2900,2900,2900,2900,{"$f":"SUM(F57:Q57)","v":34800}]
[null,null,null,null,null,null,null,null,null,null,null,null,null,null,null,null,null,{"$f":"SUM(F58:Q58)","v":0}]
[null,null,null,null,null,null,null,null,null,null,null,null,null,null,null,null,null,0]
[null,"Summe der Einnahmen",null,null,null,{"$f":"SUM(F57:F59)","v":2900},{"$f":"SUM(G57:G59)","v":2900},2900,2900,2900,2900,2900,2900,2900,2900,2900,2900,34800]
[]
[null,"Tag","Ausgaben in Fremdwährung",null,{"$f":"AD5","v":0},"Januar","Februar","März","April","Mai","Juni","Juli","August","September","Oktober","November","Dezember","Summe","Bemerkungen"]
[null,26,"Krankenversicherung",null,null,100,100,100,100,100,100,100,100,100,100,100,100,{"$f":"SUM(F63:Q63)","v":1200}]
[null,null,"Kantine essen",null,null,80,80,80,80,80,80,80,80,80,80,80,80,960]
[null,null,"Kaffee",null,null,25,25,25,25,25,25,25,25,25,25,25,25,300]
[null,null,null,null,null,null,null,null,null,null,null,null,null,null,null,null,null,0]
[null,null,null,null,null,null,null,null,null,null,null,null,null,null,null,null,null,0]
[null,"Summe der Ausgaben",null,null,null,{"$f":"SUM(F63:F67)","v":205},{"$f":"SUM(G63:G67)","v":205},205,205,205,205,205,205,205,205,205,205,2460]
[]
[null,"Saldo in (Fremdwährung)",null,null,{"$f":" AD5","v":0},{"$f":"F60-F68","v":2695},2695,2695,2695,2695,2695,2695,2695,2695,2695,2695,2695,32340]
[null,"Saldo in (Hauswährung)",null,null,{"$f":"AD6","v":"€"},{"$f":"F70/F55","v":2566.6666666666665},2566.6666666666665,2566.6666666666665,2566.6666666666665,2566.6666666666665,2566.6666666666665,2566.6666666666665,2566.6666666666665,2566.6666666666665,2566.6666666666665,2566.6666666666665,2566.6666666666665,{"$f":"SUM(F71:Q71)","v":30800.000000000004}]
[null,"Überweisung an Hausbank in",null,null,{"$f":" AD5","v":0},2400,2400,2400,2400,2400,2400,2400,2400,2400,2400,2400,2400,{"$f":"SUM(F72:Q72)","v":28800}]
[null,"Überweisung an Hausbank in",null,null,{"$f":"AD6","v":"€"},{"$f":"F72/F55","v":2285.7142857142858},2285.7142857142858,2285.7142857142858,2285.7142857142858,2285.7142857142858,2285.7142857142858,2285.7142857142858,2285.7142857142858,2285.7142857142858,2285.7142857142858,2285.7142857142858,2285.7142857142858,{"$f":"SUM(F73:Q73)","v":27428.571428571431},"! Diesen Betrag in die erste Spalte der Einnahmentabelle übertragen"]
[null,"Saldo (auf Fremdwährungskonto)",null,null,{"$f":" AD5","v":0},{"$f":"F70-F72","v":295},{"$f":"G70-G72","v":295},{"$f":"H70-H72","v":295},295,295,295,295,295,295,{"$f":"O70-O72","v":295},295,295,{"$f":"SUM(F74:Q74)","v":3540}]
[]
[]
[null,1,"Einnahmen"]
[null,"Tag","Einnahmen",null,null,"Januar","Februar","März","April","Mai","Juni","Juli","August","September","Oktober","November ","Dezember","Summe","Bemerkungen"]
[null,1,"Gehalt",null,null,2285.71,2285.71,2285.71,2285.71,2285.71,2285.71,2285.71,2285.71,2285.71,2285.71,2285.71,2285.71,{"$f":"SUM(F79:Q79)","v":27428.519999999993}]
[null,5,"Vermietung Garage",null,null,45,45,45,45,45,45,45,45,45,45,45,45,{"$f":"SUM(F80:Q80)","v":540}]
[null,10,"Nebenjob",null,null,150,null,null,150,null,null,150,null,null,150,null,null,600]
[null,null,null,null,null,null,null,null,null,null,null,null,null,null,null,null,null,{"$f":"SUM(F82:Q82)","v":0}]
[null,null,null,null,null,null,null,null,null,null,null,null,null,null,null,null,null,0]
[null,null,null,null,null,null,null,null,null,null,null,null,null,null,null,null,null,0]
[null,null,null,null,null,null,null,null,null,null,null,null,null,null,null,null,null,0]
[null,null,null,null,null,null,null,null,null,null,null,null,null,null,null,null,null,0]
[null,null,null,null,null,null,null,null,null,null,null,null,null,null,null,null,null,0]
[null,null,null,null,null,null,null,null,null,null,null,null,null,null,null,null,null,0]
[null,null,null,null,null,null,null,null,null,null,null,null,null,null,null,null,null,0]
[null,null,null,null,null,null,null,null,null,null,null,null,null,null,null,null,null,0]
[null,null,null,null,null,null,null,null,null,null,null,null,null,null,null,null,null,0]
[null,null,null,null,null,null,null,null,null,null,null,null,null,null,null,null,null,0]
[null,null,null,null,null,null,null,null,null,null,null,null,null,null,null,null,null,0]
[null,null,null,null,null,null,null,null,null,null,null,null,null,null,null,null,null,0]
[null,null,null,null,null,null,null,null,null,null,null,null,null,null,null,null,null,0]
[null,null,null,null,null,null,null,null,null,null,null,null,null,null,null,null,null,0]
[null,null,null,null,null,null,null,null,null,null,null,null,null,null,null,null,null,0]
[null,null,null,null,null,null,null,null,null,null,null,null,null,null,null,null,null,0]
[null,"Summe der Einnahmen",null,null,null,{"$f":"SUM(F79:F98)","v":2480.71},2330.71,2330.71,2480.71,2330.71,2330.71,2480.71,2330.71,2330.71,2480.71,2330.71,2330.71,28568.519999999993]
[null,null,null,null,null,null,null,null,null,null,null,null,null,null,null,null,null,null,null,null,null,null,"Seite 2"]
[]
[]
[]
[]
[]
[]
[]
[]
[]
[]
[]
[]
[]
[]
[]
[]
[]
[]
[]
[]
[null,"  Kostenkontrolle-Haushaltsbuch   -   Version 2.03",null,null,null,null,null,{"$f":"TODAY()","v":"2016-04-01"}]
[]
[]
[null,null,null,null,null,null,null,null,null,null,null,null,null,null,null,null,{"$f":"IF(AD8=1,\"\",\"Testversion\")","v":"Testversion"}]
[null,2,"Fixe Ausgaben"]
[null,"Tag","Kategorie","Ausgabe für",null,null,"Januar","Februar","März","April","Mai","Juni","Juli","August","September","Oktober","November","Dezember","Summe","Bemerkungen"]
[null,1,"Haus","Schmutzwasser (Stadtwerke)",null,null,null,null,6,null,null,6,null,null,6,null,null,6,{"$f":"SUM(G127:R127)","v":24}]
[null,1,"Haus","Niederschlagswasser (Stadtwerke)",null,null,null,null,3,null,null,3,null,null,3,null,null,3,{"$f":"SUM(G128:R128)","v":12}]
[null,1,"Haus","Wasser (Stadtwerke)",null,null,null,5,null,5,null,5,null,5,null,5,null,5,30]
[null,1,"Haus","Miete",null,null,800,800,800,800,800,800,800,800,800,800,800,800,{"$f":"SUM(G130:R130)","v":9600}]
[null,2,"Haus","Strom (Energie XY)",null,null,20,20,20,20,20,20,20,20,20,20,20,20,240]
[null,2,"Haus","Gas (Energie XY)",null,null,18,18,18,18,18,18,18,18,18,18,18,18,216]
[null,2,"Versicherung","Unfallversicherung",null,null,7.5,7.5,7.5,7.5,7.5,7.5,7.5,7.5,7.5,7.5,7.5,7.5,90]
[null,2,"Versicherung","Rentenzusatzversicherung",null,null,40,40,40,40,40,40,40,40,40,40,40,40,480]
[null,2,"Versicherung","Lebensversicherung",null,null,null,null,null,null,null,null,null,null,null,null,170,null,170]
[null,5,"Auto","Autoversicherung (XY)",null,null,290,null,null,null,null,null,null,null,null,null,null,null,290]
[null,5,"Auto","Auto Steuer (Finanzamt)",null,null,null,null,260,null,null,null,null,null,null,null,null,null,260]
[null,10,"Web/Tel./TV","Handykosten",null,null,10,10,10,10,10,10,10,10,10,10,10,10,120]
[null,11,"Kinder","Kindergarten",null,null,50,50,50,50,50,50,50,50,50,50,50,50,600]
[null,13,"Kinder","Turnverein",null,null,14,14,14,14,14,14,14,14,14,14,14,14,168]
[null,17,"Haus","Müllgebühren ",null,null,null,null,null,60,null,null,null,null,null,null,null,null,60]
[null,20,"Sonstiges","Zeitschriftenabo",null,null,15,null,null,15,null,null,15,null,null,15,null,null,60]
[null,null,null,null,null,null,null,null,null,null,null,null,null,null,null,null,null,null,0]
[null,null,null,null,null,null,null,null,null,null,null,null,null,null,null,null,null,null,0]
[null,null,null,null,null,null,null,null,null,null,null,null,null,null,null,null,null,null,0]
[null,null,null,null,null,null,null,null,null,null,null,null,null,null,null,null,null,null,0]
[null,24,"Verein","Handballverein",null,null,null,null,null,20,null,null,null,null,null,null,null,null,{"$f":"SUM(G147:R147)","v":20}]
[null,25,"Web/Tel./TV","Internet/Kabelfernsehen/Tel",null,null,29,29,29,29,29,29,29,29,29,29,29,29,348]
[null,null,null,null,null,null,null,null,null,null,null,null,null,null,null,null,null,null,0]
[null,null,null,null,null,null,null,null,null,null,null,null,null,null,null,null,null,null,0]
[null,null,null,null,null,null,null,null,null,null,null,null,null,null,null,null,null,null,0]
[null,null,null,null,null,null,null,null,null,null,null,null,null,null,null,null,null,null,0]
[null,null,null,null,null,null,null,null,null,null,null,null,null,null,null,null,null,null,0]
[null,null,null,null,null,null,null,null,null,null,null,null,null,null,null,null,null,null,0]
[null,null,null,null,null,null,null,null,null,null,null,null,null,null,null,null,null,null,{"$f":"SUM(G155:R155)","v":0}]
[null,null,null,null,null,null,null,null,null,null,null,null,null,null,null,null,null,null,0]
[null,null,null,null,null,null,null,null,null,null,null,null,null,null,null,null,null,null,0]
[null,null,null,null,null,null,null,null,null,null,null,null,null,null,null,null,null,null,0]
[null,null,null,null,null,null,null,null,null,null,null,null,null,null,null,null,null,null,0]
[null,null,null,null,null,null,null,null,null,null,null,null,null,null,null,null,null,null,0]
[null,null,null,null,null,null,null,null,null,null,null,null,null,null,null,null,null,null,0]
[null,null,null,null,null,null,null,null,null,null,null,null,null,null,null,null,null,null,0]
[null,null,null,null,null,null,null,null,null,null,null,null,null,null,null,null,null,null,0]
[null,null,null,null,null,null,null,null,null,null,null,null,null,null,null,null,null,null,0]
[null,null,null,null,null,null,null,null,null,null,null,null,null,null,null,null,null,null,0]
[null,null,null,null,null,null,null,null,null,null,null,null,null,null,null,null,null,null,0]
[null,null,null,null,null,null,null,null,null,null,null,null,null,null,null,null,null,null,0]
[null,null,null,null,null,null,null,null,null,null,null,null,null,null,null,null,null,null,0]
[null,null,null,null,null,null,null,null,null,null,null,null,null,null,null,null,null,null,0]
[null,null,null,null,null,null,null,null,null,null,null,null,null,null,null,null,null,null,0]
[null,null,null,null,null,null,null,null,null,null,null,null,null,null,null,null,null,null,0]
[null,null,null,null,null,null,null,null,null,null,null,null,null,null,null,null,null,null,0]
[null,null,null,null,null,null,null,null,null,null,null,null,null,null,null,null,null,null,0]
[null,null,null,null,null,null,null,null,null,null,null,null,null,null,null,null,null,null,0]
[null,null,null,null,null,null,null,null,null,null,null,null,null,null,null,null,null,null,0]
[null,null,null,null,null,null,null,null,null,null,null,null,null,null,null,null,null,null,0]
[null,null,null,null,null,null,null,null,null,null,null,null,null,null,null,null,null,null,0]
[null,null,null,null,null,null,null,null,null,null,null,null,null,null,null,null,null,null,0]
[null,null,null,null,null,null,null,null,null,null,null,null,null,null,null,null,null,null,0]
[null,null,null,null,null,null,null,null,null,null,null,null,null,null,null,null,null,null,0]
[null,null,null,null,null,null,null,null,null,null,null,null,null,null,null,null,null,null,0]
[null,null,null,null,null,null,null,null,null,null,null,null,null,null,null,null,null,null,0]
[null,null,null,null,null,null,null,null,null,null,null,null,null,null,null,null,null,null,0]
[null,null,null,null,null,null,null,null,null,null,null,null,null,null,null,null,null,null,0]
[null,null,null,null,null,null,null,null,null,null,null,null,null,null,null,null,null,null,0]
[null,null,null,null,null,null,null,null,null,null,null,null,null,null,null,null,null,null,0]
[null,null,null,null,null,null,{"$f":"SUM(SUBTOTAL(9,G127:G186))","v":1293.5},{"$f":"SUM(SUBTOTAL(9,H127:H186))","v":993.5},{"$f":"SUM(SUBTOTAL(9,I127:I186))","v":1257.5},1088.5,988.5,1002.5,1003.5,993.5,997.5,1008.5,1158.5,1002.5,12788]
[null,null,null,null,null,null,null,null,null,null,null,null,null,null,null,null,null,null,null,null,null,null,null,"Seite 3"]
[]
[]
[]
[]
[]
[]
[]
[]
[]
[]
[]
[]
[]
[]
[]
[]
[]
[]
[]
[]
[]
[]
[]
[]
[]
[]
[]
[null,"  Kostenkontrolle-Haushaltsbuch   -   Version 2.03",null,null,null,null,null,{"$f":"TODAY()","v":"2016-04-01"}]
[]
[]
[null,null,null,null,null,null,null,null,null,null,null,null,null,null,null,null,{"$f":"IF(AD8=1,\"\",\"Testversion\")","v":"Testversion"}]
[null,4,"Variable Ausgaben - Monatsübersicht   MÄRZ 2016",null,null,null,null,null,"3"]
[null,"Kostenart",null,null,"Januar","Februar","März","April","Mai","Juni","Juli","August","September","Oktober","November","Dezember","Summe","Bemerkung"]
[null,{"$f":"F1111","v":"Lebensmittel"},null,null,{"$f":"C433","v":174},{"$f":"C480","v":270},{"$f":"C527","v":306.49},{"$f":"C574","v":0},{"$f":"C621","v":0},{"$f":"C668","v":0},{"$f":"C715","v":0},{"$f":"C762","v":0},{"$f":"C809","v":0},{"$f":"C856","v":0},{"$f":"C903","v":0},{"$f":"C950","v":0},{"$f":"SUM(E222:P222)","v":750.49}]
[null,{"$f":"F1112","v":"Körperpflege"},null,null,{"$f":"D433","v":44.989999999999995},{"$f":"D480","v":44.99},{"$f":"D527","v":44.5},{"$f":"D574","v":0},{"$f":"D621","v":0},{"$f":"D668","v":0},{"$f":"D715","v":0},{"$f":"D762","v":0},{"$f":"D809","v":0},{"$f":"D856","v":0},{"$f":"D903","v":0},{"$f":"D950","v":0},{"$f":"SUM(E223:P223)","v":134.47999999999999}]
[null,"Kinder",null,null,{"$f":"E433","v":35},{"$f":"E480","v":46.9},{"$f":"E527","v":56},{"$f":"E574","v":0},{"$f":"E621","v":0},{"$f":"E668","v":0},{"$f":"E715","v":0},{"$f":"E762","v":0},{"$f":"E809","v":0},{"$f":"E856","v":0},{"$f":"E903","v":0},{"$f":"E950","v":0},137.9]
[null,"Freizeit",null,null,{"$f":"F433","v":200},{"$f":"F480","v":323.5},{"$f":"F527","v":118.4},{"$f":"F574","v":0},{"$f":"F621","v":0},{"$f":"F668","v":0},{"$f":"F715","v":0},{"$f":"F762","v":0},{"$f":"F809","v":0},{"$f":"F856","v":0},{"$f":"F903","v":0},{"$f":"F950","v":0},641.9]
[null,"Wohnung",null,null,{"$f":"G433","v":12},{"$f":"G480","v":1317.8899999999999},{"$f":"G527","v":85.300000000000011},{"$f":"G574","v":0},{"$f":"G621","v":0},{"$f":"G668","v":0},{"$f":"G715","v":0},{"$f":"G762","v":0},{"$f":"G809","v":0},{"$f":"G856","v":0},{"$f":"G903","v":0},{"$f":"G950","v":0},1415.1899999999998]
[null,"Auto (tanken)",null,null,{"$f":"H433","v":90},{"$f":"H480","v":215},{"$f":"H527","v":219},{"$f":"H574","v":0},{"$f":"H621","v":0},{"$f":"H668","v":0},{"$f":"H715","v":0},{"$f":"H762","v":0},{"$f":"H809","v":0},{"$f":"H856","v":0},{"$f":"H903","v":0},{"$f":"H950","v":0},524]
[null,"Hobby",null,null,{"$f":"I433","v":0},{"$f":"I480","v":49.8},{"$f":"I527","v":42.9},{"$f":"I574","v":0},{"$f":"I621","v":0},{"$f":"I668","v":0},{"$f":"I715","v":0},{"$f":"I762","v":0},{"$f":"I809","v":0},{"$f":"I856","v":0},{"$f":"I903","v":0},{"$f":"I950","v":0},92.699999999999989]
[null,{"$f":"F1118","v":"Kleidung"},null,null,{"$f":"J433","v":124.4},{"$f":"J480","v":34.519999999999996},{"$f":"J527","v":86.800000000000011},{"$f":"J574","v":0},{"$f":"J621","v":0},{"$f":"J668","v":0},{"$f":"J715","v":0},{"$f":"J762","v":0},{"$f":"J809","v":0},{"$f":"J856","v":0},{"$f":"J903","v":0},{"$f":"J950","v":0},245.72000000000003]
[null,"9",null,null,{"$f":"K433","v":0},{"$f":"K480","v":0},{"$f":"K527","v":0},{"$f":"K574","v":0},{"$f":"K621","v":0},{"$f":"K668","v":0},{"$f":"K715","v":0},{"$f":"K762","v":0},{"$f":"K809","v":0},{"$f":"K856","v":0},{"$f":"K903","v":0},{"$f":"K950","v":0},0]
[null,"10",null,null,{"$f":"L433","v":0},{"$f":"L480","v":0},{"$f":"L527","v":0},{"$f":"L574","v":0},{"$f":"L621","v":0},{"$f":"L668","v":0},{"$f":"L715","v":0},{"$f":"L762","v":0},{"$f":"L809","v":0},{"$f":"L856","v":0},{"$f":"L903","v":0},{"$f":"L950","v":0},0]
[null,"11",null,null,{"$f":"M433","v":0},{"$f":"M480","v":0},{"$f":"M527","v":0},{"$f":"M574","v":0},{"$f":"M621","v":0},{"$f":"M668","v":0},{"$f":"M715","v":0},{"$f":"M762","v":0},{"$f":"M809","v":0},{"$f":"M856","v":0},{"$f":"M903","v":0},{"$f":"M950","v":0},0]
[null,"12",null,null,{"$f":"N433","v":0},{"$f":"N480","v":0},{"$f":"N527","v":0},{"$f":"N574","v":0},{"$f":"N621","v":0},{"$f":"N668","v":0},{"$f":"N715","v":0},{"$f":"N762","v":0},{"$f":"N809","v":0},{"$f":"N856","v":0},{"$f":"N903","v":0},{"$f":"N950","v":0},0]
[null,"13",null,null,{"$f":"O433","v":0},{"$f":"O480","v":0},{"$f":"O527","v":0},{"$f":"O574","v":0},{"$f":"O621","v":0},{"$f":"O668","v":0},{"$f":"O715","v":0},{"$f":"O762","v":0},{"$f":"O809","v":0},{"$f":"O856","v":0},{"$f":"O903","v":0},{"$f":"O950","v":0},0]
[null,"14",null,null,{"$f":"P433","v":0},{"$f":"P480","v":0},{"$f":"P527","v":0},{"$f":"P574","v":0},{"$f":"P621","v":0},{"$f":"P668","v":0},{"$f":"P715","v":0},{"$f":"P762","v":0},{"$f":"P809","v":0},{"$f":"P856","v":0},{"$f":"P903","v":0},{"$f":"P950","v":0},0]
[null,"15",null,null,{"$f":"Q433","v":0},{"$f":"Q480","v":0},{"$f":"Q527","v":0},{"$f":"Q574","v":0},{"$f":"Q621","v":0},{"$f":"Q668","v":0},{"$f":"Q715","v":0},{"$f":"Q762","v":0},{"$f":"Q809","v":0},{"$f":"Q856","v":0},{"$f":"Q903","v":0},{"$f":"Q950","v":0},{"$f":"SUM(E236:P236)","v":0}]
[null,"16",null,null,{"$f":"R433","v":0},{"$f":"R480","v":0},{"$f":"R527","v":0},{"$f":"R574","v":0},{"$f":"R621","v":0},{"$f":"R668","v":0},{"$f":"R715","v":0},{"$f":"R762","v":0},{"$f":"R809","v":0},{"$f":"R856","v":0},{"$f":"R903","v":0},{"$f":"R950","v":0},{"$f":"SUM(E237:P237)","v":0}]
[null,"17",null,null,{"$f":"S433","v":0},{"$f":"S480","v":0},{"$f":"S527","v":0},{"$f":"S574","v":0},{"$f":"S621","v":0},{"$f":"S668","v":0},{"$f":"S715","v":0},{"$f":"S762","v":0},{"$f":"S809","v":0},{"$f":"S856","v":0},{"$f":"S903","v":0},{"$f":"S950","v":0},0]
[null,"18",null,null,{"$f":"T433","v":0},{"$f":"T480","v":0},{"$f":"T527","v":0},{"$f":"T574","v":0},{"$f":"T621","v":0},{"$f":"T668","v":0},{"$f":"T715","v":0},{"$f":"T762","v":0},{"$f":"T809","v":0},{"$f":"T856","v":0},{"$f":"T903","v":0},{"$f":"T950","v":0},0]
[null,"19",null,null,{"$f":"U433","v":0},{"$f":"U480","v":0},{"$f":"U527","v":0},{"$f":"U574","v":0},{"$f":"U621","v":0},{"$f":"U668","v":0},{"$f":"U715","v":0},{"$f":"U762","v":0},{"$f":"U809","v":0},{"$f":"U856","v":0},{"$f":"U903","v":0},{"$f":"U950","v":0},0]
[null,"20",null,null,{"$f":"V433","v":0},{"$f":"V480","v":0},{"$f":"V527","v":0},{"$f":"V574","v":0},{"$f":"V621","v":0},{"$f":"V668","v":0},{"$f":"V715","v":0},{"$f":"V762","v":0},{"$f":"V809","v":0},{"$f":"V856","v":0},{"$f":"V903","v":0},{"$f":"V950","v":0},0]
[null,"Summe",null,null,{"$f":"SUM(E222:E241)","v":680.39},{"$f":"SUM(F222:F241)","v":2302.6},959.3900000000001,0,0,0,0,0,0,0,0,0,{"$f":"SUM(E242:P242)","v":3942.38}]
[null,null,null,null,null,null,null,null,null,null,null,null,null,null,null,null,null,null,null,null,null,"Seite 4"]
[]
[]
[]
[]
[]
[]
[]
[]
[]
[]
[]
[]
[]
[]
[]
[]
[]
[]
[]
[]
[]
[]
[]
[]
[]
[]
[]
[]
[]
[]
[]
[]
[]
[]
[]
[]
[]
[]
[]
[]
[]
[]
[]
[]
[]
[]
[]
[]
[]
[]
[]
[]
[]
[]
[]
[]
[]
[]
[]
[]
[]
[]
[]
[]
[]
[]
[]
[]
[]
[]
[]
[]
[]
[]
[]
[]
[]
[]
[]
[]
[]
[]
[]
[]
[]
[]
[]
[]
[]
[]
[]
[]
[]
[]
[]
[]
[]
[]
[]
[]
[]
[]
[]
[]
[]
[]
[]
[]
[]
[]
[]
[]
[]
[]
[]
[]
[]
[]
[]
[]
[]
[]
[]
[]
[]
[]
[]
[]
[]
[]
[]
[]
[]
[]
[]
[]
[]
[]
[]
[]
[]
[]
[]
[]
[]
[]
[]
[]
[]
[]
[]
[]
[]
[]
[]
[]
[]
[null,"Tag",{"$f":"$F$1111","v":"Lebensmittel"},{"$f":"$F$1112","v":"Körperpflege"},{"$f":"$F$1113","v":"Kinder"},{"$f":"$F$1114","v":"Freizeit"},{"$f":"$F$1115","v":"Wohnung"},{"$f":"$F$1116","v":"Auto (tanken)"},{"$f":"$F$1117","v":"Hobby"},{"$f":"$F$1118","v":"Kleidung"},{"$f":"$F$1119","v":"9"},{"$f":"$F$1120","v":"10"},{"$f":"$F$1121","v":"11"},{"$f":"$F$1122","v":"12"},{"$f":"$F$1123","v":"13"},{"$f":"$F$1124","v":"14"},{"$f":"$F$1125","v":"15"},{"$f":"$F$1126","v":"16"},{"$f":"$F$1127","v":"17"},{"$f":"$F$1128","v":"18"},{"$f":"$F$1129","v":"19"},{"$f":"$F$1130","v":"20"},"Summe","Bemerkung"]
[null,1,null,null,null,null,null,null,null,null,null,null,null,null,null,null,null,null,null,null,null,null,{"$f":"SUM(C402:V402)","v":0}]
[null,2,30,null,20,null,null,null,null,null,null,null,null,null,null,null,null,null,null,null,null,null,{"$f":"SUM(C403:V403)","v":50}]
[null,3,null,10,null,200,null,null,null,null,null,null,null,null,null,null,null,null,null,null,null,null,210]
[null,4,null,null,null,null,12,null,null,null,null,null,null,null,null,null,null,null,null,null,null,null,12]
[null,5,null,null,null,null,null,30,null,null,null,null,null,null,null,null,null,null,null,null,null,null,30]
[null,6,null,null,null,null,null,null,null,null,null,null,null,null,null,null,null,null,null,null,null,null,0]
[null,7,null,null,null,null,null,null,null,null,null,null,null,null,null,null,null,null,null,null,null,null,0]
[null,8,null,null,null,null,null,null,null,null,null,null,null,null,null,null,null,null,null,null,null,null,0]
[null,9,null,null,null,null,null,null,null,99.9,null,null,null,null,null,null,null,null,null,null,null,null,99.9]
[null,10,null,null,null,null,null,null,null,null,null,null,null,null,null,null,null,null,null,null,null,null,0]
[null,11,54,null,null,null,null,null,null,null,null,null,null,null,null,null,null,null,null,null,null,null,54]
[null,12,null,15,null,null,null,null,null,null,null,null,null,null,null,null,null,null,null,null,null,null,15]
[null,13,null,null,null,null,null,null,null,null,null,null,null,null,null,null,null,null,null,null,null,null,0]
[null,14,null,null,null,null,null,null,null,null,null,null,null,null,null,null,null,null,null,null,null,null,0]
[null,15,20,null,null,null,null,null,null,null,null,null,null,null,null,null,null,null,null,null,null,null,20]
[null,16,null,null,null,null,null,null,null,null,null,null,null,null,null,null,null,null,null,null,null,null,0]
[null,17,null,null,15,null,null,null,null,null,null,null,null,null,null,null,null,null,null,null,null,null,15]
[null,18,null,null,null,null,null,50,null,null,null,null,null,null,null,null,null,null,null,null,null,null,50]
[null,19,null,19.989999999999998,null,null,null,null,null,null,null,null,null,null,null,null,null,null,null,null,null,null,19.989999999999998]
[null,20,null,null,null,null,null,null,null,null,null,null,null,null,null,null,null,null,null,null,null,null,0]
[null,21,null,null,null,null,null,null,null,null,null,null,null,null,null,null,null,null,null,null,null,null,0]
[null,22,null,null,null,null,null,null,null,null,null,null,null,null,null,null,null,null,null,null,null,null,0]
[null,23,null,null,null,null,null,null,null,null,null,null,null,null,null,null,null,null,null,null,null,null,0]
[null,24,70,null,null,null,null,null,null,null,null,null,null,null,null,null,null,null,null,null,null,null,70]
[null,25,null,null,null,null,null,null,null,24.5,null,null,null,null,null,null,null,null,null,null,null,null,24.5]
[null,26,null,null,null,null,null,null,null,null,null,null,null,null,null,null,null,null,null,null,null,null,{"$f":"SUM(C427:V427)","v":0}]
[null,27,null,null,null,null,null,10,null,null,null,null,null,null,null,null,null,null,null,null,null,null,10]
[null,28,null,null,null,null,null,null,null,null,null,null,null,null,null,null,null,null,null,null,null,null,0]
[null,29,null,null,null,null,null,null,null,null,null,null,null,null,null,null,null,null,null,null,null,null,0]
[null,30,null,null,null,null,null,null,null,null,null,null,null,null,null,null,null,null,null,null,null,null,0]
[null,31,null,null,null,null,null,null,null,null,null,null,null,null,null,null,null,null,null,null,null,null,0]
[null,"Sum.",{"$f":"SUM(C402:C432)","v":174},{"$f":"SUM(D402:D432)","v":44.989999999999995},35,200,12,90,0,124.4,0,0,0,0,0,0,0,0,0,0,0,0,{"$f":"SUM(C433:V433)","v":680.39}]
[null,null,null,null,null,null,null,null,null,null,null,null,null,null,null,null,null,null,null,null,null,null,null,null,null,null,null,"Januar"]
[]
[]
[]
[]
[]
[]
[]
[]
[]
[]
[]
[]
[]
[null,"Tag",{"$f":"$F$1111","v":"Lebensmittel"},{"$f":"$F$1112","v":"Körperpflege"},{"$f":"$F$1113","v":"Kinder"},{"$f":"$F$1114","v":"Freizeit"},{"$f":"$F$1115","v":"Wohnung"},{"$f":"$F$1116","v":"Auto (tanken)"},{"$f":"$F$1117","v":"Hobby"},{"$f":"$F$1118","v":"Kleidung"},{"$f":"$F$1119","v":"9"},{"$f":"$F$1120","v":"10"},{"$f":"$F$1121","v":"11"},{"$f":"$F$1122","v":"12"},{"$f":"$F$1123","v":"13"},{"$f":"$F$1124","v":"14"},{"$f":"$F$1125","v":"15"},{"$f":"$F$1126","v":"16"},{"$f":"$F$1127","v":"17"},{"$f":"$F$1128","v":"18"},{"$f":"$F$1129","v":"19"},{"$f":"$F$1130","v":"20"},"Summe","Bemerkung"]
[null,1,null,null,null,null,null,null,null,null,null,null,null,null,null,null,null,null,null,null,null,null,{"$f":"SUM(C449:V449)","v":0}]
[null,2,null,null,null,null,19.989999999999998,null,null,null,null,null,null,null,null,null,null,null,null,null,null,null,{"$f":"SUM(C450:V450)","v":19.989999999999998}]
[null,3,40,null,null,null,null,55,null,null,null,null,null,null,null,null,null,null,null,null,null,null,95]
[null,4,null,null,null,null,null,null,null,14.3,null,null,null,null,null,null,null,null,null,null,null,null,14.3]
[null,5,null,null,19.899999999999999,30,null,null,null,null,null,null,null,null,null,null,null,null,null,null,null,null,49.9]
[null,6,null,10,null,null,null,null,33,null,null,null,null,null,null,null,null,null,null,null,null,null,43]
[null,7,null,null,null,null,null,null,null,null,null,null,null,null,null,null,null,null,null,null,null,null,0]
[null,8,null,null,null,null,null,null,null,null,null,null,null,null,null,null,null,null,null,null,null,null,0]
[null,9,66,null,null,null,15.9,null,null,null,null,null,null,null,null,null,null,null,null,null,null,null,81.900000000000006]
[null,10,null,null,null,null,null,null,null,null,null,null,null,null,null,null,null,null,null,null,null,null,0]
[null,11,null,null,null,null,null,null,null,20.22,null,null,null,null,null,null,null,null,null,null,null,null,20.22]
[null,12,null,null,null,null,null,null,null,null,null,null,null,null,null,null,null,null,null,null,null,null,0]
[null,13,null,null,null,null,320,51,null,null,null,null,null,null,null,null,null,null,null,null,null,null,371,"Wohungsrennovation"]
[null,14,null,null,10,null,479,null,null,null,null,null,null,null,null,null,null,null,null,null,null,null,489,"Wohungsrennovation"]
[null,15,null,20,null,50,449,null,null,null,null,null,null,null,null,null,null,null,null,null,null,null,519,"Wohungsrennovation"]
[null,16,null,null,3,null,null,null,null,null,null,null,null,null,null,null,null,null,null,null,null,null,3]
[null,17,53,null,null,null,null,null,null,null,null,null,null,null,null,null,null,null,null,null,null,null,53]
[null,18,null,null,null,null,null,null,null,null,null,null,null,null,null,null,null,null,null,null,null,null,0]
[null,19,null,null,null,null,null,null,8.9,null,null,null,null,null,null,null,null,null,null,null,null,null,8.9]
[null,20,null,null,null,null,34,null,null,null,null,null,null,null,null,null,null,null,null,null,null,null,34]
[null,21,null,14.99,null,null,null,null,null,null,null,null,null,null,null,null,null,null,null,null,null,null,14.99]
[null,22,null,null,null,null,null,null,null,null,null,null,null,null,null,null,null,null,null,null,null,null,0]
[null,23,67,null,null,null,null,55,7.9,null,null,null,null,null,null,null,null,null,null,null,null,null,129.9]
[null,24,null,null,14,23.5,null,null,null,null,null,null,null,null,null,null,null,null,null,null,null,null,37.5]
[null,25,null,null,null,null,null,null,null,null,null,null,null,null,null,null,null,null,null,null,null,null,0]
[null,26,null,null,null,null,null,null,null,null,null,null,null,null,null,null,null,null,null,null,null,null,{"$f":"SUM(C474:V474)","v":0}]
[null,27,null,null,null,null,null,null,null,null,null,null,null,null,null,null,null,null,null,null,null,null,{"$f":"SUM(C475:V475)","v":0}]
[null,28,44,null,null,220,null,54,null,null,null,null,null,null,null,null,null,null,null,null,null,null,318,"Freizeit: Wochenendausflug"]
[null,29,null,null,null,null,null,null,null,null,null,null,null,null,null,null,null,null,null,null,null,null,0]
[null,30,null,null,null,null,null,null,null,null,null,null,null,null,null,null,null,null,null,null,null,null,0]
[null,31,null,null,null,null,null,null,null,null,null,null,null,null,null,null,null,null,null,null,null,null,0]
[null,"Sum.",{"$f":"SUM(C449:C479)","v":270},{"$f":"SUM(D449:D479)","v":44.99},46.9,323.5,1317.8899999999999,215,49.8,34.519999999999996,0,0,0,0,0,0,0,0,0,0,0,0,{"$f":"SUM(C480:V480)","v":2302.6}]
[null,null,null,null,null,null,null,null,null,null,null,null,null,null,null,null,null,null,null,null,null,null,null,null,null,null,null,"Februar"]
[]
[]
[]
[]
[]
[]
[]
[]
[]
[]
[]
[]
[]
[null,"Tag",{"$f":"$F$1111","v":"Lebensmittel"},{"$f":"$F$1112","v":"Körperpflege"},{"$f":"$F$1113","v":"Kinder"},{"$f":"$F$1114","v":"Freizeit"},{"$f":"$F$1115","v":"Wohnung"},{"$f":"$F$1116","v":"Auto (tanken)"},{"$f":"$F$1117","v":"Hobby"},{"$f":"$F$1118","v":"Kleidung"},{"$f":"$F$1119","v":"9"},{"$f":"$F$1120","v":"10"},{"$f":"$F$1121","v":"11"},{"$f":"$F$1122","v":"12"},{"$f":"$F$1123","v":"13"},{"$f":"$F$1124","v":"14"},{"$f":"$F$1125","v":"15"},{"$f":"$F$1126","v":"16"},{"$f":"$F$1127","v":"17"},{"$f":"$F$1128","v":"18"},{"$f":"$F$1129","v":"19"},{"$f":"$F$1130","v":"20"},"Summe","Bemerkung"]
[null,1,null,null,null,null,null,null,null,null,null,null,null,null,null,null,null,null,null,null,null,null,{"$f":"SUM(C496:V496)","v":0}]
[null,2,44,null,null,null,null,null,null,null,null,null,null,null,null,null,null,null,null,null,null,null,{"$f":"SUM(C497:V497)","v":44}]
[null,3,null,10,20,null,null,54,null,null,null,null,null,null,null,null,null,null,null,null,null,null,84]
[null,4,null,null,null,20,null,null,null,null,null,null,null,null,null,null,null,null,null,null,null,null,20]
[null,5,null,null,null,null,null,null,null,null,null,null,null,null,null,null,null,null,null,null,null,null,0]
[null,6,null,null,null,null,null,null,null,null,null,null,null,null,null,null,null,null,null,null,null,null,0]
[null,7,78,null,null,null,19.899999999999999,null,null,null,null,null,null,null,null,null,null,null,null,null,null,null,97.9]
[null,8,null,null,null,null,null,null,null,null,null,null,null,null,null,null,null,null,null,null,null,null,0]
[null,9,null,null,null,null,null,null,null,null,null,null,null,null,null,null,null,null,null,null,null,null,0]
[null,10,null,null,null,null,null,null,null,null,null,null,null,null,null,null,null,null,null,null,null,null,0]
[null,11,null,null,null,null,null,null,null,null,null,null,null,null,null,null,null,null,null,null,null,null,0]
[null,12,null,22.5,null,33.5,null,56,null,29.9,null,null,null,null,null,null,null,null,null,null,null,null,141.9]
[null,13,null,null,null,null,null,null,32,null,null,null,null,null,null,null,null,null,null,null,null,null,32]
[null,14,null,null,null,null,null,null,null,null,null,null,null,null,null,null,null,null,null,null,null,null,0]
[null,15,44.99,null,22,null,54.5,null,null,null,null,null,null,null,null,null,null,null,null,null,null,null,121.49000000000001]
[null,16,null,null,null,null,null,null,null,null,null,null,null,null,null,null,null,null,null,null,null,null,0]
[null,17,null,null,null,null,null,null,null,44,null,null,null,null,null,null,null,null,null,null,null,null,44]
[null,18,null,null,null,null,null,null,null,null,null,null,null,null,null,null,null,null,null,null,null,null,0]
[null,19,null,null,null,null,null,null,null,null,null,null,null,null,null,null,null,null,null,null,null,null,0]
[null,20,null,null,3,19.899999999999999,null,null,null,null,null,null,null,null,null,null,null,null,null,null,null,null,22.9]
[null,21,62.5,12,null,null,null,55,null,null,null,null,null,null,null,null,null,null,null,null,null,null,129.5]
[null,22,null,null,null,null,null,null,null,null,null,null,null,null,null,null,null,null,null,null,null,null,0]
[null,23,null,null,6,null,null,null,null,null,null,null,null,null,null,null,null,null,null,null,null,null,6]
[null,24,null,null,null,null,null,null,null,null,null,null,null,null,null,null,null,null,null,null,null,null,0]
[null,25,null,null,null,45,null,null,null,null,null,null,null,null,null,null,null,null,null,null,null,null,45]
[null,26,77,null,null,null,null,null,null,null,null,null,null,null,null,null,null,null,null,null,null,null,{"$f":"SUM(C521:V521)","v":77}]
[null,27,null,null,null,null,null,null,10.9,null,null,null,null,null,null,null,null,null,null,null,null,null,{"$f":"SUM(C522:V522)","v":10.9}]
[null,28,null,null,null,null,10.9,null,null,null,null,null,null,null,null,null,null,null,null,null,null,null,10.9]
[null,29,null,null,5,null,null,54,null,12.9,null,null,null,null,null,null,null,null,null,null,null,null,71.900000000000006]
[null,30,null,null,null,null,null,null,null,null,null,null,null,null,null,null,null,null,null,null,null,null,0]
[null,31,null,null,null,null,null,null,null,null,null,null,null,null,null,null,null,null,null,null,null,null,0]
[null,"Sum.",{"$f":"SUM(C496:C526)","v":306.49},{"$f":"SUM(D496:D526)","v":44.5},56,118.4,85.300000000000011,219,42.9,86.800000000000011,0,0,0,0,0,0,0,0,0,0,0,0,{"$f":"SUM(C527:V527)","v":959.3900000000001}]
[null,null,null,null,null,null,null,null,null,null,null,null,null,null,null,null,null,null,null,null,null,null,null,null,null,null,null,"März"]
[]
[]
[]
[]
[]
[]
[]
[]
[]
[]
[]
[]
[]
[null,"Tag",{"$f":"$F$1111","v":"Lebensmittel"},{"$f":"$F$1112","v":"Körperpflege"},{"$f":"$F$1113","v":"Kinder"},{"$f":"$F$1114","v":"Freizeit"},{"$f":"$F$1115","v":"Wohnung"},{"$f":"$F$1116","v":"Auto (tanken)"},{"$f":"$F$1117","v":"Hobby"},{"$f":"$F$1118","v":"Kleidung"},{"$f":"$F$1119","v":"9"},{"$f":"$F$1120","v":"10"},{"$f":"$F$1121","v":"11"},{"$f":"$F$1122","v":"12"},{"$f":"$F$1123","v":"13"},{"$f":"$F$1124","v":"14"},{"$f":"$F$1125","v":"15"},{"$f":"$F$1126","v":"16"},{"$f":"$F$1127","v":"17"},{"$f":"$F$1128","v":"18"},{"$f":"$F$1129","v":"19"},{"$f":"$F$1130","v":"20"},"Summe","Bemerkung"]
[null,1,null,null,null,null,null,null,null,null,null,null,null,null,null,null,null,null,null,null,null,null,{"$f":"SUM(C543:V543)","v":0}]
[null,2,null,null,null,null,null,null,null,null,null,null,null,null,null,null,null,null,null,null,null,null,{"$f":"SUM(C544:V544)","v":0}]
[null,3,null,null,null,null,null,null,null,null,null,null,null,null,null,null,null,null,null,null,null,null,0]
[null,4,null,null,null,null,null,null,null,null,null,null,null,null,null,null,null,null,null,null,null,null,0]
[null,5,null,null,null,null,null,null,null,null,null,null,null,null,null,null,null,null,null,null,null,null,0]
[null,6,null,null,null,null,null,null,null,null,null,null,null,null,null,null,null,null,null,null,null,null,0]
[null,7,null,null,null,null,null,null,null,null,null,null,null,null,null,null,null,null,null,null,null,null,0]
[null,8,null,null,null,null,null,null,null,null,null,null,null,null,null,null,null,null,null,null,null,null,0]
[null,9,null,null,null,null,null,null,null,null,null,null,null,null,null,null,null,null,null,null,null,null,0]
[null,10,null,null,null,null,null,null,null,null,null,null,null,null,null,null,null,null,null,null,null,null,0]
[null,11,null,null,null,null,null,null,null,null,null,null,null,null,null,null,null,null,null,null,null,null,0]
[null,12,null,null,null,null,null,null,null,null,null,null,null,null,null,null,null,null,null,null,null,null,0]
[null,13,null,null,null,null,null,null,null,null,null,null,null,null,null,null,null,null,null,null,null,null,0]
[null,14,null,null,null,null,null,null,null,null,null,null,null,null,null,null,null,null,null,null,null,null,0]
[null,15,null,null,null,null,null,null,null,null,null,null,null,null,null,null,null,null,null,null,null,null,0]
[null,16,null,null,null,null,null,null,null,null,null,null,null,null,null,null,null,null,null,null,null,null,0]
[null,17,null,null,null,null,null,null,null,null,null,null,null,null,null,null,null,null,null,null,null,null,0]
[null,18,null,null,null,null,null,null,null,null,null,null,null,null,null,null,null,null,null,null,null,null,0]
[null,19,null,null,null,null,null,null,null,null,null,null,null,null,null,null,null,null,null,null,null,null,0]
[null,20,null,null,null,null,null,null,null,null,null,null,null,null,null,null,null,null,null,null,null,null,0]
[null,21,null,null,null,null,null,null,null,null,null,null,null,null,null,null,null,null,null,null,null,null,0]
[null,22,null,null,null,null,null,null,null,null,null,null,null,null,null,null,null,null,null,null,null,null,0]
[null,23,null,null,null,null,null,null,null,null,null,null,null,null,null,null,null,null,null,null,null,null,0]
[null,24,null,null,null,null,null,null,null,null,null,null,null,null,null,null,null,null,null,null,null,null,0]
[null,25,null,null,null,null,null,null,null,null,null,null,null,null,null,null,null,null,null,null,null,null,0]
[null,26,null,null,null,null,null,null,null,null,null,null,null,null,null,null,null,null,null,null,null,null,{"$f":"SUM(C568:V568)","v":0}]
[null,27,null,null,null,null,null,null,null,null,null,null,null,null,null,null,null,null,null,null,null,null,{"$f":"SUM(C569:V569)","v":0}]
[null,28,null,null,null,null,null,null,null,null,null,null,null,null,null,null,null,null,null,null,null,null,0]
[null,29,null,null,null,null,null,null,null,null,null,null,null,null,null,null,null,null,null,null,null,null,0]
[null,30,null,null,null,null,null,null,null,null,null,null,null,null,null,null,null,null,null,null,null,null,0]
[null,31,null,null,null,null,null,null,null,null,null,null,null,null,null,null,null,null,null,null,null,null,0]
[null,"Sum.",{"$f":"SUM(C543:C573)","v":0},{"$f":"SUM(D543:D573)","v":0},0,0,0,0,0,0,0,0,0,0,0,0,0,0,0,0,0,0,{"$f":"SUM(C574:V574)","v":0}]
[null,null,null,null,null,null,null,null,null,null,null,null,null,null,null,null,null,null,null,null,null,null,null,null,null,null,null,"April"]
[]
[]
[]
[]
[]
[]
[]
[]
[]
[]
[]
[]
[]
[null,"Tag",{"$f":"$F$1111","v":"Lebensmittel"},{"$f":"$F$1112","v":"Körperpflege"},{"$f":"$F$1113","v":"Kinder"},{"$f":"$F$1114","v":"Freizeit"},{"$f":"$F$1115","v":"Wohnung"},{"$f":"$F$1116","v":"Auto (tanken)"},{"$f":"$F$1117","v":"Hobby"},{"$f":"$F$1118","v":"Kleidung"},{"$f":"$F$1119","v":"9"},{"$f":"$F$1120","v":"10"},{"$f":"$F$1121","v":"11"},{"$f":"$F$1122","v":"12"},{"$f":"$F$1123","v":"13"},{"$f":"$F$1124","v":"14"},{"$f":"$F$1125","v":"15"},{"$f":"$F$1126","v":"16"},{"$f":"$F$1127","v":"17"},{"$f":"$F$1128","v":"18"},{"$f":"$F$1129","v":"19"},{"$f":"$F$1130","v":"20"},"Summe","Bemerkung"]
[null,1,null,null,null,null,null,null,null,null,null,null,null,null,null,null,null,null,null,null,null,null,{"$f":"SUM(C590:V590)","v":0}]
[null,2,null,null,null,null,null,null,null,null,null,null,null,null,null,null,null,null,null,null,null,null,{"$f":"SUM(C591:V591)","v":0}]
[null,3,null,null,null,null,null,null,null,null,null,null,null,null,null,null,null,null,null,null,null,null,0]
[null,4,null,null,null,null,null,null,null,null,null,null,null,null,null,null,null,null,null,null,null,null,0]
[null,5,null,null,null,null,null,null,null,null,null,null,null,null,null,null,null,null,null,null,null,null,0]
[null,6,null,null,null,null,null,null,null,null,null,null,null,null,null,null,null,null,null,null,null,null,0]
[null,7,null,null,null,null,null,null,null,null,null,null,null,null,null,null,null,null,null,null,null,null,0]
[null,8,null,null,null,null,null,null,null,null,null,null,null,null,null,null,null,null,null,null,null,null,0]
[null,9,null,null,null,null,null,null,null,null,null,null,null,null,null,null,null,null,null,null,null,null,0]
[null,10,null,null,null,null,null,null,null,null,null,null,null,null,null,null,null,null,null,null,null,null,0]
[null,11,null,null,null,null,null,null,null,null,null,null,null,null,null,null,null,null,null,null,null,null,0]
[null,12,null,null,null,null,null,null,null,null,null,null,null,null,null,null,null,null,null,null,null,null,0]
[null,13,null,null,null,null,null,null,null,null,null,null,null,null,null,null,null,null,null,null,null,null,0]
[null,14,null,null,null,null,null,null,null,null,null,null,null,null,null,null,null,null,null,null,null,null,0]
[null,15,null,null,null,null,null,null,null,null,null,null,null,null,null,null,null,null,null,null,null,null,0]
[null,16,null,null,null,null,null,null,null,null,null,null,null,null,null,null,null,null,null,null,null,null,0]
[null,17,null,null,null,null,null,null,null,null,null,null,null,null,null,null,null,null,null,null,null,null,0]
[null,18,null,null,null,null,null,null,null,null,null,null,null,null,null,null,null,null,null,null,null,null,0]
[null,19,null,null,null,null,null,null,null,null,null,null,null,null,null,null,null,null,null,null,null,null,0]
[null,20,null,null,null,null,null,null,null,null,null,null,null,null,null,null,null,null,null,null,null,null,0]
[null,21,null,null,null,null,null,null,null,null,null,null,null,null,null,null,null,null,null,null,null,null,0]
[null,22,null,null,null,null,null,null,null,null,null,null,null,null,null,null,null,null,null,null,null,null,0]
[null,23,null,null,null,null,null,null,null,null,null,null,null,null,null,null,null,null,null,null,null,null,0]
[null,24,null,null,null,null,null,null,null,null,null,null,null,null,null,null,null,null,null,null,null,null,0]
[null,25,null,null,null,null,null,null,null,null,null,null,null,null,null,null,null,null,null,null,null,null,0]
[null,26,null,null,null,null,null,null,null,null,null,null,null,null,null,null,null,null,null,null,null,null,{"$f":"SUM(C615:V615)","v":0}]
[null,27,null,null,null,null,null,null,null,null,null,null,null,null,null,null,null,null,null,null,null,null,{"$f":"SUM(C616:V616)","v":0}]
[null,28,null,null,null,null,null,null,null,null,null,null,null,null,null,null,null,null,null,null,null,null,0]
[null,29,null,null,null,null,null,null,null,null,null,null,null,null,null,null,null,null,null,null,null,null,0]
[null,30,null,null,null,null,null,null,null,null,null,null,null,null,null,null,null,null,null,null,null,null,0]
[null,31,null,null,null,null,null,null,null,null,null,null,null,null,null,null,null,null,null,null,null,null,0]
[null,"Sum.",{"$f":"SUM(C590:C620)","v":0},{"$f":"SUM(D590:D620)","v":0},0,0,0,0,0,0,0,0,0,0,0,0,0,0,0,0,0,0,{"$f":"SUM(C621:V621)","v":0}]
[null,null,null,null,null,null,null,null,null,null,null,null,null,null,null,null,null,null,null,null,null,null,null,null,null,null,null,"Mai"]
[]
[]
[]
[]
[]
[]
[]
[]
[]
[]
[]
[]
[]
[null,"Tag",{"$f":"$F$1111","v":"Lebensmittel"},{"$f":"$F$1112","v":"Körperpflege"},{"$f":"$F$1113","v":"Kinder"},{"$f":"$F$1114","v":"Freizeit"},{"$f":"$F$1115","v":"Wohnung"},{"$f":"$F$1116","v":"Auto (tanken)"},{"$f":"$F$1117","v":"Hobby"},{"$f":"$F$1118","v":"Kleidung"},{"$f":"$F$1119","v":"9"},{"$f":"$F$1120","v":"10"},{"$f":"$F$1121","v":"11"},{"$f":"$F$1122","v":"12"},{"$f":"$F$1123","v":"13"},{"$f":"$F$1124","v":"14"},{"$f":"$F$1125","v":"15"},{"$f":"$F$1126","v":"16"},{"$f":"$F$1127","v":"17"},{"$f":"$F$1128","v":"18"},{"$f":"$F$1129","v":"19"},{"$f":"$F$1130","v":"20"},"Summe","Bemerkung"]
[null,1,null,null,null,null,null,null,null,null,null,null,null,null,null,null,null,null,null,null,null,null,{"$f":"SUM(C637:V637)","v":0}]
[null,2,null,null,null,null,null,null,null,null,null,null,null,null,null,null,null,null,null,null,null,null,{"$f":"SUM(C638:V638)","v":0}]
[null,3,null,null,null,null,null,null,null,null,null,null,null,null,null,null,null,null,null,null,null,null,0]
[null,4,null,null,null,null,null,null,null,null,null,null,null,null,null,null,null,null,null,null,null,null,0]
[null,5,null,null,null,null,null,null,null,null,null,null,null,null,null,null,null,null,null,null,null,null,0]
[null,6,null,null,null,null,null,null,null,null,null,null,null,null,null,null,null,null,null,null,null,null,0]
[null,7,null,null,null,null,null,null,null,null,null,null,null,null,null,null,null,null,null,null,null,null,0]
[null,8,null,null,null,null,null,null,null,null,null,null,null,null,null,null,null,null,null,null,null,null,0]
[null,9,null,null,null,null,null,null,null,null,null,null,null,null,null,null,null,null,null,null,null,null,0]
[null,10,null,null,null,null,null,null,null,null,null,null,null,null,null,null,null,null,null,null,null,null,0]
[null,11,null,null,null,null,null,null,null,null,null,null,null,null,null,null,null,null,null,null,null,null,0]
[null,12,null,null,null,null,null,null,null,null,null,null,null,null,null,null,null,null,null,null,null,null,0]
[null,13,null,null,null,null,null,null,null,null,null,null,null,null,null,null,null,null,null,null,null,null,0]
[null,14,null,null,null,null,null,null,null,null,null,null,null,null,null,null,null,null,null,null,null,null,0]
[null,15,null,null,null,null,null,null,null,null,null,null,null,null,null,null,null,null,null,null,null,null,0]
[null,16,null,null,null,null,null,null,null,null,null,null,null,null,null,null,null,null,null,null,null,null,0]
[null,17,null,null,null,null,null,null,null,null,null,null,null,null,null,null,null,null,null,null,null,null,0]
[null,18,null,null,null,null,null,null,null,null,null,null,null,null,null,null,null,null,null,null,null,null,0]
[null,19,null,null,null,null,null,null,null,null,null,null,null,null,null,null,null,null,null,null,null,null,0]
[null,20,null,null,null,null,null,null,null,null,null,null,null,null,null,null,null,null,null,null,null,null,0]
[null,21,null,null,null,null,null,null,null,null,null,null,null,null,null,null,null,null,null,null,null,null,0]
[null,22,null,null,null,null,null,null,null,null,null,null,null,null,null,null,null,null,null,null,null,null,0]
[null,23,null,null,null,null,null,null,null,null,null,null,null,null,null,null,null,null,null,null,null,null,0]
[null,24,null,null,null,null,null,null,null,null,null,null,null,null,null,null,null,null,null,null,null,null,0]
[null,25,null,null,null,null,null,null,null,null,null,null,null,null,null,null,null,null,null,null,null,null,0]
[null,26,null,null,null,null,null,null,null,null,null,null,null,null,null,null,null,null,null,null,null,null,{"$f":"SUM(C662:V662)","v":0}]
[null,27,null,null,null,null,null,null,null,null,null,null,null,null,null,null,null,null,null,null,null,null,{"$f":"SUM(C663:V663)","v":0}]
[null,28,null,null,null,null,null,null,null,null,null,null,null,null,null,null,null,null,null,null,null,null,0]
[null,29,null,null,null,null,null,null,null,null,null,null,null,null,null,null,null,null,null,null,null,null,0]
[null,30,null,null,null,null,null,null,null,null,null,null,null,null,null,null,null,null,null,null,null,null,0]
[null,31,null,null,null,null,null,null,null,null,null,null,null,null,null,null,null,null,null,null,null,null,0]
[null,"Sum.",{"$f":"SUM(C637:C667)","v":0},{"$f":"SUM(D637:D667)","v":0},0,0,0,0,0,0,0,0,0,0,0,0,0,0,0,0,0,0,{"$f":"SUM(C668:V668)","v":0}]
[null,null,null,null,null,null,null,null,null,null,null,null,null,null,null,null,null,null,null,null,null,null,null,null,null,null,null,"Juni"]
[]
[]
[]
[]
[]
[]
[]
[]
[]
[]
[]
[]
[]
[null,"Tag",{"$f":"$F$1111","v":"Lebensmittel"},{"$f":"$F$1112","v":"Körperpflege"},{"$f":"$F$1113","v":"Kinder"},{"$f":"$F$1114","v":"Freizeit"},{"$f":"$F$1115","v":"Wohnung"},{"$f":"$F$1116","v":"Auto (tanken)"},{"$f":"$F$1117","v":"Hobby"},{"$f":"$F$1118","v":"Kleidung"},{"$f":"$F$1119","v":"9"},{"$f":"$F$1120","v":"10"},{"$f":"$F$1121","v":"11"},{"$f":"$F$1122","v":"12"},{"$f":"$F$1123","v":"13"},{"$f":"$F$1124","v":"14"},{"$f":"$F$1125","v":"15"},{"$f":"$F$1126","v":"16"},{"$f":"$F$1127","v":"17"},{"$f":"$F$1128","v":"18"},{"$f":"$F$1129","v":"19"},{"$f":"$F$1130","v":"20"},"Summe","Bemerkung"]
[null,1,null,null,null,null,null,null,null,null,null,null,null,null,null,null,null,null,null,null,null,null,{"$f":"SUM(C684:V684)","v":0}]
[null,2,null,null,null,null,null,null,null,null,null,null,null,null,null,null,null,null,null,null,null,null,{"$f":"SUM(C685:V685)","v":0}]
[null,3,null,null,null,null,null,null,null,null,null,null,null,null,null,null,null,null,null,null,null,null,0]
[null,4,null,null,null,null,null,null,null,null,null,null,null,null,null,null,null,null,null,null,null,null,0]
[null,5,null,null,null,null,null,null,null,null,null,null,null,null,null,null,null,null,null,null,null,null,0]
[null,6,null,null,null,null,null,null,null,null,null,null,null,null,null,null,null,null,null,null,null,null,0]
[null,7,null,null,null,null,null,null,null,null,null,null,null,null,null,null,null,null,null,null,null,null,0]
[null,8,null,null,null,null,null,null,null,null,null,null,null,null,null,null,null,null,null,null,null,null,0]
[null,9,null,null,null,null,null,null,null,null,null,null,null,null,null,null,null,null,null,null,null,null,0]
[null,10,null,null,null,null,null,null,null,null,null,null,null,null,null,null,null,null,null,null,null,null,0]
[null,11,null,null,null,null,null,null,null,null,null,null,null,null,null,null,null,null,null,null,null,null,0]
[null,12,null,null,null,null,null,null,null,null,null,null,null,null,null,null,null,null,null,null,null,null,0]
[null,13,null,null,null,null,null,null,null,null,null,null,null,null,null,null,null,null,null,null,null,null,0]
[null,14,null,null,null,null,null,null,null,null,null,null,null,null,null,null,null,null,null,null,null,null,0]
[null,15,null,null,null,null,null,null,null,null,null,null,null,null,null,null,null,null,null,null,null,null,0]
[null,16,null,null,null,null,null,null,null,null,null,null,null,null,null,null,null,null,null,null,null,null,0]
[null,17,null,null,null,null,null,null,null,null,null,null,null,null,null,null,null,null,null,null,null,null,0]
[null,18,null,null,null,null,null,null,null,null,null,null,null,null,null,null,null,null,null,null,null,null,0]
[null,19,null,null,null,null,null,null,null,null,null,null,null,null,null,null,null,null,null,null,null,null,0]
[null,20,null,null,null,null,null,null,null,null,null,null,null,null,null,null,null,null,null,null,null,null,0]
[null,21,null,null,null,null,null,null,null,null,null,null,null,null,null,null,null,null,null,null,null,null,0]
[null,22,null,null,null,null,null,null,null,null,null,null,null,null,null,null,null,null,null,null,null,null,0]
[null,23,null,null,null,null,null,null,null,null,null,null,null,null,null,null,null,null,null,null,null,null,0]
[null,24,null,null,null,null,null,null,null,null,null,null,null,null,null,null,null,null,null,null,null,null,0]
[null,25,null,null,null,null,null,null,null,null,null,null,null,null,null,null,null,null,null,null,null,null,0]
[null,26,null,null,null,null,null,null,null,null,null,null,null,null,null,null,null,null,null,null,null,null,{"$f":"SUM(C709:V709)","v":0}]
[null,27,null,null,null,null,null,null,null,null,null,null,null,null,null,null,null,null,null,null,null,null,{"$f":"SUM(C710:V710)","v":0}]
[null,28,null,null,null,null,null,null,null,null,null,null,null,null,null,null,null,null,null,null,null,null,0]
[null,29,null,null,null,null,null,null,null,null,null,null,null,null,null,null,null,null,null,null,null,null,0]
[null,30,null,null,null,null,null,null,null,null,null,null,null,null,null,null,null,null,null,null,null,null,0]
[null,31,null,null,null,null,null,null,null,null,null,null,null,null,null,null,null,null,null,null,null,null,0]
[null,"Sum.",{"$f":"SUM(C684:C714)","v":0},{"$f":"SUM(D684:D714)","v":0},0,0,0,0,0,0,0,0,0,0,0,0,0,0,0,0,0,0,{"$f":"SUM(C715:V715)","v":0}]
[null,null,null,null,null,null,null,null,null,null,null,null,null,null,null,null,null,null,null,null,null,null,null,null,null,null,null,"Juli"]
[]
[]
[]
[]
[]
[]
[]
[]
[]
[]
[]
[]
[]
[null,"Tag",{"$f":"$F$1111","v":"Lebensmittel"},{"$f":"$F$1112","v":"Körperpflege"},{"$f":"$F$1113","v":"Kinder"},{"$f":"$F$1114","v":"Freizeit"},{"$f":"$F$1115","v":"Wohnung"},{"$f":"$F$1116","v":"Auto (tanken)"},{"$f":"$F$1117","v":"Hobby"},{"$f":"$F$1118","v":"Kleidung"},{"$f":"$F$1119","v":"9"},{"$f":"$F$1120","v":"10"},{"$f":"$F$1121","v":"11"},{"$f":"$F$1122","v":"12"},{"$f":"$F$1123","v":"13"},{"$f":"$F$1124","v":"14"},{"$f":"$F$1125","v":"15"},{"$f":"$F$1126","v":"16"},{"$f":"$F$1127","v":"17"},{"$f":"$F$1128","v":"18"},{"$f":"$F$1129","v":"19"},{"$f":"$F$1130","v":"20"},"Summe","Bemerkung"]
[null,1,null,null,null,null,null,null,null,null,null,null,null,null,null,null,null,null,null,null,null,null,{"$f":"SUM(C731:V731)","v":0}]
[null,2,null,null,null,null,null,null,null,null,null,null,null,null,null,null,null,null,null,null,null,null,{"$f":"SUM(C732:V732)","v":0}]
[null,3,null,null,null,null,null,null,null,null,null,null,null,null,null,null,null,null,null,null,null,null,0]
[null,4,null,null,null,null,null,null,null,null,null,null,null,null,null,null,null,null,null,null,null,null,0]
[null,5,null,null,null,null,null,null,null,null,null,null,null,null,null,null,null,null,null,null,null,null,0]
[null,6,null,null,null,null,null,null,null,null,null,null,null,null,null,null,null,null,null,null,null,null,0]
[null,7,null,null,null,null,null,null,null,null,null,null,null,null,null,null,null,null,null,null,null,null,0]
[null,8,null,null,null,null,null,null,null,null,null,null,null,null,null,null,null,null,null,null,null,null,0]
[null,9,null,null,null,null,null,null,null,null,null,null,null,null,null,null,null,null,null,null,null,null,0]
[null,10,null,null,null,null,null,null,null,null,null,null,null,null,null,null,null,null,null,null,null,null,0]
[null,11,null,null,null,null,null,null,null,null,null,null,null,null,null,null,null,null,null,null,null,null,0]
[null,12,null,null,null,null,null,null,null,null,null,null,null,null,null,null,null,null,null,null,null,null,0]
[null,13,null,null,null,null,null,null,null,null,null,null,null,null,null,null,null,null,null,null,null,null,0]
[null,14,null,null,null,null,null,null,null,null,null,null,null,null,null,null,null,null,null,null,null,null,0]
[null,15,null,null,null,null,null,null,null,null,null,null,null,null,null,null,null,null,null,null,null,null,0]
[null,16,null,null,null,null,null,null,null,null,null,null,null,null,null,null,null,null,null,null,null,null,0]
[null,17,null,null,null,null,null,null,null,null,null,null,null,null,null,null,null,null,null,null,null,null,0]
[null,18,null,null,null,null,null,null,null,null,null,null,null,null,null,null,null,null,null,null,null,null,0]
[null,19,null,null,null,null,null,null,null,null,null,null,null,null,null,null,null,null,null,null,null,null,0]
[null,20,null,null,null,null,null,null,null,null,null,null,null,null,null,null,null,null,null,null,null,null,0]
[null,21,null,null,null,null,null,null,null,null,null,null,null,null,null,null,null,null,null,null,null,null,0]
[null,22,null,null,null,null,null,null,null,null,null,null,null,null,null,null,null,null,null,null,null,null,0]
[null,23,null,null,null,null,null,null,null,null,null,null,null,null,null,null,null,null,null,null,null,null,0]
[null,24,null,null,null,null,null,null,null,null,null,null,null,null,null,null,null,null,null,null,null,null,0]
[null,25,null,null,null,null,null,null,null,null,null,null,null,null,null,null,null,null,null,null,null,null,0]
[null,26,null,null,null,null,null,null,null,null,null,null,null,null,null,null,null,null,null,null,null,null,{"$f":"SUM(C756:V756)","v":0}]
[null,27,null,null,null,null,null,null,null,null,null,null,null,null,null,null,null,null,null,null,null,null,{"$f":"SUM(C757:V757)","v":0}]
[null,28,null,null,null,null,null,null,null,null,null,null,null,null,null,null,null,null,null,null,null,null,0]
[null,29,null,null,null,null,null,null,null,null,null,null,null,null,null,null,null,null,null,null,null,null,0]
[null,30,null,null,null,null,null,null,null,null,null,null,null,null,null,null,null,null,null,null,null,null,0]
[null,31,null,null,null,null,null,null,null,null,null,null,null,null,null,null,null,null,null,null,null,null,0]
[null,"Sum.",{"$f":"SUM(C731:C761)","v":0},{"$f":"SUM(D731:D761)","v":0},0,0,0,0,0,0,0,0,0,0,0,0,0,0,0,0,0,0,{"$f":"SUM(C762:V762)","v":0}]
[null,null,null,null,null,null,null,null,null,null,null,null,null,null,null,null,null,null,null,null,null,null,null,null,null,null,null,"August"]
[]
[]
[]
[]
[]
[]
[]
[]
[]
[]
[]
[]
[]
[null,"Tag",{"$f":"$F$1111","v":"Lebensmittel"},{"$f":"$F$1112","v":"Körperpflege"},{"$f":"$F$1113","v":"Kinder"},{"$f":"$F$1114","v":"Freizeit"},{"$f":"$F$1115","v":"Wohnung"},{"$f":"$F$1116","v":"Auto (tanken)"},{"$f":"$F$1117","v":"Hobby"},{"$f":"$F$1118","v":"Kleidung"},{"$f":"$F$1119","v":"9"},{"$f":"$F$1120","v":"10"},{"$f":"$F$1121","v":"11"},{"$f":"$F$1122","v":"12"},{"$f":"$F$1123","v":"13"},{"$f":"$F$1124","v":"14"},{"$f":"$F$1125","v":"15"},{"$f":"$F$1126","v":"16"},{"$f":"$F$1127","v":"17"},{"$f":"$F$1128","v":"18"},{"$f":"$F$1129","v":"19"},{"$f":"$F$1130","v":"20"},"Summe","Bemerkung"]
[null,1,null,null,null,null,null,null,null,null,null,null,null,null,null,null,null,null,null,null,null,null,{"$f":"SUM(C778:V778)","v":0}]
[null,2,null,null,null,null,null,null,null,null,null,null,null,null,null,null,null,null,null,null,null,null,{"$f":"SUM(C779:V779)","v":0}]
[null,3,null,null,null,null,null,null,null,null,null,null,null,null,null,null,null,null,null,null,null,null,0]
[null,4,null,null,null,null,null,null,null,null,null,null,null,null,null,null,null,null,null,null,null,null,0]
[null,5,null,null,null,null,null,null,null,null,null,null,null,null,null,null,null,null,null,null,null,null,0]
[null,6,null,null,null,null,null,null,null,null,null,null,null,null,null,null,null,null,null,null,null,null,0]
[null,7,null,null,null,null,null,null,null,null,null,null,null,null,null,null,null,null,null,null,null,null,0]
[null,8,null,null,null,null,null,null,null,null,null,null,null,null,null,null,null,null,null,null,null,null,0]
[null,9,null,null,null,null,null,null,null,null,null,null,null,null,null,null,null,null,null,null,null,null,0]
[null,10,null,null,null,null,null,null,null,null,null,null,null,null,null,null,null,null,null,null,null,null,0]
[null,11,null,null,null,null,null,null,null,null,null,null,null,null,null,null,null,null,null,null,null,null,0]
[null,12,null,null,null,null,null,null,null,null,null,null,null,null,null,null,null,null,null,null,null,null,0]
[null,13,null,null,null,null,null,null,null,null,null,null,null,null,null,null,null,null,null,null,null,null,0]
[null,14,null,null,null,null,null,null,null,null,null,null,null,null,null,null,null,null,null,null,null,null,0]
[null,15,null,null,null,null,null,null,null,null,null,null,null,null,null,null,null,null,null,null,null,null,0]
[null,16,null,null,null,null,null,null,null,null,null,null,null,null,null,null,null,null,null,null,null,null,0]
[null,17,null,null,null,null,null,null,null,null,null,null,null,null,null,null,null,null,null,null,null,null,0]
[null,18,null,null,null,null,null,null,null,null,null,null,null,null,null,null,null,null,null,null,null,null,0]
[null,19,null,null,null,null,null,null,null,null,null,null,null,null,null,null,null,null,null,null,null,null,0]
[null,20,null,null,null,null,null,null,null,null,null,null,null,null,null,null,null,null,null,null,null,null,0]
[null,21,null,null,null,null,null,null,null,null,null,null,null,null,null,null,null,null,null,null,null,null,0]
[null,22,null,null,null,null,null,null,null,null,null,null,null,null,null,null,null,null,null,null,null,null,0]
[null,23,null,null,null,null,null,null,null,null,null,null,null,null,null,null,null,null,null,null,null,null,0]
[null,24,null,null,null,null,null,null,null,null,null,null,null,null,null,null,null,null,null,null,null,null,0]
[null,25,null,null,null,null,null,null,null,null,null,null,null,null,null,null,null,null,null,null,null,null,0]
[null,26,null,null,null,null,null,null,null,null,null,null,null,null,null,null,null,null,null,null,null,null,{"$f":"SUM(C803:V803)","v":0}]
[null,27,null,null,null,null,null,null,null,null,null,null,null,null,null,null,null,null,null,null,null,null,{"$f":"SUM(C804:V804)","v":0}]
[null,28,null,null,null,null,null,null,null,null,null,null,null,null,null,null,null,null,null,null,null,null,0]
[null,29,null,null,null,null,null,null,null,null,null,null,null,null,null,null,null,null,null,null,null,null,0]
[null,30,null,null,null,null,null,null,null,null,null,null,null,null,null,null,null,null,null,null,null,null,0]
[null,31,null,null,null,null,null,null,null,null,null,null,null,null,null,null,null,null,null,null,null,null,0]
[null,"Sum.",{"$f":"SUM(C778:C808)","v":0},{"$f":"SUM(D778:D808)","v":0},0,0,0,0,0,0,0,0,0,0,0,0,0,0,0,0,0,0,{"$f":"SUM(C809:V809)","v":0}]
[null,null,null,null,null,null,null,null,null,null,null,null,null,null,null,null,null,null,null,null,null,null,null,null,null,null,null,"September"]
[]
[]
[]
[]
[]
[]
[]
[]
[]
[]
[]
[]
[]
[null,"Tag",{"$f":"$F$1111","v":"Lebensmittel"},{"$f":"$F$1112","v":"Körperpflege"},{"$f":"$F$1113","v":"Kinder"},{"$f":"$F$1114","v":"Freizeit"},{"$f":"$F$1115","v":"Wohnung"},{"$f":"$F$1116","v":"Auto (tanken)"},{"$f":"$F$1117","v":"Hobby"},{"$f":"$F$1118","v":"Kleidung"},{"$f":"$F$1119","v":"9"},{"$f":"$F$1120","v":"10"},{"$f":"$F$1121","v":"11"},{"$f":"$F$1122","v":"12"},{"$f":"$F$1123","v":"13"},{"$f":"$F$1124","v":"14"},{"$f":"$F$1125","v":"15"},{"$f":"$F$1126","v":"16"},{"$f":"$F$1127","v":"17"},{"$f":"$F$1128","v":"18"},{"$f":"$F$1129","v":"19"},{"$f":"$F$1130","v":"20"},"Summe","Bemerkung"]
[null,1,null,null,null,null,null,null,null,null,null,null,null,null,null,null,null,null,null,null,null,null,{"$f":"SUM(C825:V825)","v":0}]
[null,2,null,null,null,null,null,null,null,null,null,null,null,null,null,null,null,null,null,null,null,null,{"$f":"SUM(C826:V826)","v":0}]
[null,3,null,null,null,null,null,null,null,null,null,null,null,null,null,null,null,null,null,null,null,null,0]
[null,4,null,null,null,null,null,null,null,null,null,null,null,null,null,null,null,null,null,null,null,null,0]
[null,5,null,null,null,null,null,null,null,null,null,null,null,null,null,null,null,null,null,null,null,null,0]
[null,6,null,null,null,null,null,null,null,null,null,null,null,null,null,null,null,null,null,null,null,null,0]
[null,7,null,null,null,null,null,null,null,null,null,null,null,null,null,null,null,null,null,null,null,null,0]
[null,8,null,null,null,null,null,null,null,null,null,null,null,null,null,null,null,null,null,null,null,null,0]
[null,9,null,null,null,null,null,null,null,null,null,null,null,null,null,null,null,null,null,null,null,null,0]
[null,10,null,null,null,null,null,null,null,null,null,null,null,null,null,null,null,null,null,null,null,null,0]
[null,11,null,null,null,null,null,null,null,null,null,null,null,null,null,null,null,null,null,null,null,null,0]
[null,12,null,null,null,null,null,null,null,null,null,null,null,null,null,null,null,null,null,null,null,null,0]
[null,13,null,null,null,null,null,null,null,null,null,null,null,null,null,null,null,null,null,null,null,null,0]
[null,14,null,null,null,null,null,null,null,null,null,null,null,null,null,null,null,null,null,null,null,null,0]
[null,15,null,null,null,null,null,null,null,null,null,null,null,null,null,null,null,null,null,null,null,null,0]
[null,16,null,null,null,null,null,null,null,null,null,null,null,null,null,null,null,null,null,null,null,null,0]
[null,17,null,null,null,null,null,null,null,null,null,null,null,null,null,null,null,null,null,null,null,null,0]
[null,18,null,null,null,null,null,null,null,null,null,null,null,null,null,null,null,null,null,null,null,null,0]
[null,19,null,null,null,null,null,null,null,null,null,null,null,null,null,null,null,null,null,null,null,null,0]
[null,20,null,null,null,null,null,null,null,null,null,null,null,null,null,null,null,null,null,null,null,null,0]
[null,21,null,null,null,null,null,null,null,null,null,null,null,null,null,null,null,null,null,null,null,null,0]
[null,22,null,null,null,null,null,null,null,null,null,null,null,null,null,null,null,null,null,null,null,null,0]
[null,23,null,null,null,null,null,null,null,null,null,null,null,null,null,null,null,null,null,null,null,null,0]
[null,24,null,null,null,null,null,null,null,null,null,null,null,null,null,null,null,null,null,null,null,null,0]
[null,25,null,null,null,null,null,null,null,null,null,null,null,null,null,null,null,null,null,null,null,null,0]
[null,26,null,null,null,null,null,null,null,null,null,null,null,null,null,null,null,null,null,null,null,null,{"$f":"SUM(C850:V850)","v":0}]
[null,27,null,null,null,null,null,null,null,null,null,null,null,null,null,null,null,null,null,null,null,null,{"$f":"SUM(C851:V851)","v":0}]
[null,28,null,null,null,null,null,null,null,null,null,null,null,null,null,null,null,null,null,null,null,null,0]
[null,29,null,null,null,null,null,null,null,null,null,null,null,null,null,null,null,null,null,null,null,null,0]
[null,30,null,null,null,null,null,null,null,null,null,null,null,null,null,null,null,null,null,null,null,null,0]
[null,31,null,null,null,null,null,null,null,null,null,null,null,null,null,null,null,null,null,null,null,null,0]
[null,"Sum.",{"$f":"SUM(C825:C855)","v":0},{"$f":"SUM(D825:D855)","v":0},0,0,0,0,0,0,0,0,0,0,0,0,0,0,0,0,0,0,{"$f":"SUM(C856:V856)","v":0}]
[null,null,null,null,null,null,null,null,null,null,null,null,null,null,null,null,null,null,null,null,null,null,null,null,null,null,null,"Oktober"]
[]
[]
[]
[]
[]
[]
[]
[]
[]
[]
[]
[]
[]
[null,"Tag",{"$f":"$F$1111","v":"Lebensmittel"},{"$f":"$F$1112","v":"Körperpflege"},{"$f":"$F$1113","v":"Kinder"},{"$f":"$F$1114","v":"Freizeit"},{"$f":"$F$1115","v":"Wohnung"},{"$f":"$F$1116","v":"Auto (tanken)"},{"$f":"$F$1117","v":"Hobby"},{"$f":"$F$1118","v":"Kleidung"},{"$f":"$F$1119","v":"9"},{"$f":"$F$1120","v":"10"},{"$f":"$F$1121","v":"11"},{"$f":"$F$1122","v":"12"},{"$f":"$F$1123","v":"13"},{"$f":"$F$1124","v":"14"},{"$f":"$F$1125","v":"15"},{"$f":"$F$1126","v":"16"},{"$f":"$F$1127","v":"17"},{"$f":"$F$1128","v":"18"},{"$f":"$F$1129","v":"19"},{"$f":"$F$1130","v":"20"},"Summe","Bemerkung"]
[null,1,null,null,null,null,null,null,null,null,null,null,null,null,null,null,null,null,null,null,null,null,{"$f":"SUM(C872:V872)","v":0}]
[null,2,null,null,null,null,null,null,null,null,null,null,null,null,null,null,null,null,null,null,null,null,{"$f":"SUM(C873:V873)","v":0}]
[null,3,null,null,null,null,null,null,null,null,null,null,null,null,null,null,null,null,null,null,null,null,0]
[null,4,null,null,null,null,null,null,null,null,null,null,null,null,null,null,null,null,null,null,null,null,0]
[null,5,null,null,null,null,null,null,null,null,null,null,null,null,null,null,null,null,null,null,null,null,0]
[null,6,null,null,null,null,null,null,null,null,null,null,null,null,null,null,null,null,null,null,null,null,0]
[null,7,null,null,null,null,null,null,null,null,null,null,null,null,null,null,null,null,null,null,null,null,0]
[null,8,null,null,null,null,null,null,null,null,null,null,null,null,null,null,null,null,null,null,null,null,0]
[null,9,null,null,null,null,null,null,null,null,null,null,null,null,null,null,null,null,null,null,null,null,0]
[null,10,null,null,null,null,null,null,null,null,null,null,null,null,null,null,null,null,null,null,null,null,0]
[null,11,null,null,null,null,null,null,null,null,null,null,null,null,null,null,null,null,null,null,null,null,0]
[null,12,null,null,null,null,null,null,null,null,null,null,null,null,null,null,null,null,null,null,null,null,0]
[null,13,null,null,null,null,null,null,null,null,null,null,null,null,null,null,null,null,null,null,null,null,0]
[null,14,null,null,null,null,null,null,null,null,null,null,null,null,null,null,null,null,null,null,null,null,0]
[null,15,null,null,null,null,null,null,null,null,null,null,null,null,null,null,null,null,null,null,null,null,0]
[null,16,null,null,null,null,null,null,null,null,null,null,null,null,null,null,null,null,null,null,null,null,0]
[null,17,null,null,null,null,null,null,null,null,null,null,null,null,null,null,null,null,null,null,null,null,0]
[null,18,null,null,null,null,null,null,null,null,null,null,null,null,null,null,null,null,null,null,null,null,0]
[null,19,null,null,null,null,null,null,null,null,null,null,null,null,null,null,null,null,null,null,null,null,0]
[null,20,null,null,null,null,null,null,null,null,null,null,null,null,null,null,null,null,null,null,null,null,0]
[null,21,null,null,null,null,null,null,null,null,null,null,null,null,null,null,null,null,null,null,null,null,0]
[null,22,null,null,null,null,null,null,null,null,null,null,null,null,null,null,null,null,null,null,null,null,0]
[null,23,null,null,null,null,null,null,null,null,null,null,null,null,null,null,null,null,null,null,null,null,0]
[null,24,null,null,null,null,null,null,null,null,null,null,null,null,null,null,null,null,null,null,null,null,0]
[null,25,null,null,null,null,null,null,null,null,null,null,null,null,null,null,null,null,null,null,null,null,0]
[null,26,null,null,null,null,null,null,null,null,null,null,null,null,null,null,null,null,null,null,null,null,{"$f":"SUM(C897:V897)","v":0}]
[null,27,null,null,null,null,null,null,null,null,null,null,null,null,null,null,null,null,null,null,null,null,{"$f":"SUM(C898:V898)","v":0}]
[null,28,null,null,null,null,null,null,null,null,null,null,null,null,null,null,null,null,null,null,null,null,0]
[null,29,null,null,null,null,null,null,null,null,null,null,null,null,null,null,null,null,null,null,null,null,0]
[null,30,null,null,null,null,null,null,null,null,null,null,null,null,null,null,null,null,null,null,null,null,0]
[null,31,null,null,null,null,null,null,null,null,null,null,null,null,null,null,null,null,null,null,null,null,0]
[null,"Sum.",{"$f":"SUM(C872:C902)","v":0},{"$f":"SUM(D872:D902)","v":0},0,0,0,0,0,0,0,0,0,0,0,0,0,0,0,0,0,0,{"$f":"SUM(C903:V903)","v":0}]
[null,null,null,null,null,null,null,null,null,null,null,null,null,null,null,null,null,null,null,null,null,null,null,null,null,null,null,"November"]
[]
[]
[]
[]
[]
[]
[]
[]
[]
[]
[]
[]
[]
[null,"Tag",{"$f":"$F$1111","v":"Lebensmittel"},{"$f":"$F$1112","v":"Körperpflege"},{"$f":"$F$1113","v":"Kinder"},{"$f":"$F$1114","v":"Freizeit"},{"$f":"$F$1115","v":"Wohnung"},{"$f":"$F$1116","v":"Auto (tanken)"},{"$f":"$F$1117","v":"Hobby"},{"$f":"$F$1118","v":"Kleidung"},{"$f":"$F$1119","v":"9"},{"$f":"$F$1120","v":"10"},{"$f":"$F$1121","v":"11"},{"$f":"$F$1122","v":"12"},{"$f":"$F$1123","v":"13"},{"$f":"$F$1124","v":"14"},{"$f":"$F$1125","v":"15"},{"$f":"$F$1126","v":"16"},{"$f":"$F$1127","v":"17"},{"$f":"$F$1128","v":"18"},{"$f":"$F$1129","v":"19"},{"$f":"$F$1130","v":"20"},"Summe","Bemerkung"]
[null,1,null,null,null,null,null,null,null,null,null,null,null,null,null,null,null,null,null,null,null,null,{"$f":"SUM(C919:V919)","v":0}]
[null,2,null,null,null,null,null,null,null,null,null,null,null,null,null,null,null,null,null,null,null,null,{"$f":"SUM(C920:V920)","v":0}]
[null,3,null,null,null,null,null,null,null,null,null,null,null,null,null,null,null,null,null,null,null,null,0]
[null,4,null,null,null,null,null,null,null,null,null,null,null,null,null,null,null,null,null,null,null,null,0]
[null,5,null,null,null,null,null,null,null,null,null,null,null,null,null,null,null,null,null,null,null,null,0]
[null,6,null,null,null,null,null,null,null,null,null,null,null,null,null,null,null,null,null,null,null,null,0]
[null,7,null,null,null,null,null,null,null,null,null,null,null,null,null,null,null,null,null,null,null,null,0]
[null,8,null,null,null,null,null,null,null,null,null,null,null,null,null,null,null,null,null,null,null,null,0]
[null,9,null,null,null,null,null,null,null,null,null,null,null,null,null,null,null,null,null,null,null,null,0]
[null,10,null,null,null,null,null,null,null,null,null,null,null,null,null,null,null,null,null,null,null,null,0]
[null,11,null,null,null,null,null,null,null,null,null,null,null,null,null,null,null,null,null,null,null,null,0]
[null,12,null,null,null,null,null,null,null,null,null,null,null,null,null,null,null,null,null,null,null,null,0]
[null,13,null,null,null,null,null,null,null,null,null,null,null,null,null,null,null,null,null,null,null,null,0]
[null,14,null,null,null,null,null,null,null,null,null,null,null,null,null,null,null,null,null,null,null,null,0]
[null,15,null,null,null,null,null,null,null,null,null,null,null,null,null,null,null,null,null,null,null,null,0]
[null,16,null,null,null,null,null,null,null,null,null,null,null,null,null,null,null,null,null,null,null,null,0]
[null,17,null,null,null,null,null,null,null,null,null,null,null,null,null,null,null,null,null,null,null,null,0]
[null,18,null,null,null,null,null,null,null,null,null,null,null,null,null,null,null,null,null,null,null,null,0]
[null,19,null,null,null,null,null,null,null,null,null,null,null,null,null,null,null,null,null,null,null,null,0]
[null,20,null,null,null,null,null,null,null,null,null,null,null,null,null,null,null,null,null,null,null,null,0]
[null,21,null,null,null,null,null,null,null,null,null,null,null,null,null,null,null,null,null,null,null,null,0]
[null,22,null,null,null,null,null,null,null,null,null,null,null,null,null,null,null,null,null,null,null,null,0]
[null,23,null,null,null,null,null,null,null,null,null,null,null,null,null,null,null,null,null,null,null,null,0]
[null,24,null,null,null,null,null,null,null,null,null,null,null,null,null,null,null,null,null,null,null,null,0]
[null,25,null,null,null,null,null,null,null,null,null,null,null,null,null,null,null,null,null,null,null,null,0]
[null,26,null,null,null,null,null,null,null,null,null,null,null,null,null,null,null,null,null,null,null,null,{"$f":"SUM(C944:V944)","v":0}]
[null,27,null,null,null,null,null,null,null,null,null,null,null,null,null,null,null,null,null,null,null,null,{"$f":"SUM(C945:V945)","v":0}]
[null,28,null,null,null,null,null,null,null,null,null,null,null,null,null,null,null,null,null,null,null,null,0]
[null,29,null,null,null,null,null,null,null,null,null,null,null,null,null,null,null,null,null,null,null,null,0]
[null,30,null,null,null,null,null,null,null,null,null,null,null,null,null,null,null,null,null,null,null,null,0]
[null,31,null,null,null,null,null,null,null,null,null,null,null,null,null,null,null,null,null,null,null,null,0]
[null,"Sum.",{"$f":"SUM(C919:C949)","v":0},{"$f":"SUM(D919:D949)","v":0},0,0,0,0,0,0,0,0,0,0,0,0,0,0,0,0,0,0,{"$f":"SUM(C950:V950)","v":0}]
[null,null,null,null,null,null,null,null,null,null,null,null,null,null,null,null,null,null,null,null,null,null,null,null,null,null,null,"Dezember"]
[]
[]
[]
[]
[]
[]
[]
[]
[]
[]
[]
[]
[]
[]
[]
[]
[]
[]
[]
[]
[]
[]
[]
[]
[]
[]
[]
[]
[]
[]
[]
[]
[]
[]
[]
[]
[]
[]
[]
[]
[]
[]
[]
[]
[]
[]
[]
[]
[]
[]
[]
[]
[]
[]
[]
[]
[]
[]
[]
[]
[]
[]
[]
[]
[]
[]
[]
[]
[]
[]
[]
[]
[]
[]
[]
[]
[]
[]
[]
[]
[]
[]
[]
[]
[]
[]
[]
[]
[]
[]
[]
[]
[]
[]
[]
[]
[]
[]
[]
[]
[]
[]
[]
[]
[]
[]
[]
[]
[]
[]
[]
[]
[]
[]
[]
[]
[]
[]
[]
[]
[]
[]
[]
[]
[]
[]
[]
[]
[]
[]
[]
[]
[]
[]
[]
[]
[]
[]
[]
[]
[]
[]
[]
[]
[]
[]
[]
[]
[null,"Kostenkontrolle-Haushaltsbuch   -   Version 2.03",null,null,null,null,null,{"$f":"TODAY()","v":"2016-04-01"}]
[]
[]
[]
[]
[]
[null,"Basisdaten"]
[null,"Einstellungen"]
[null,"Hauptwährung:",null,null,null,"€"]
[null,"Einnahmen in Fremdwährung (J/N)?",null,null,null,"N"]
[null,"Wenn J, Angabe der Fremdwährung:"]
[null,"Kostenarten für variable Ausgaben (max. 20):",null,null,null,"Lebensmittel"]
[null,null,null,null,null,"Körperpflege"]
[null,null,null,null,null,"Kinder"]
[null,null,null,null,null,"Freizeit"]
[null,null,null,null,null,"Wohnung"]
[null,null,null,null,null,"Auto (tanken)"]
[null,null,null,null,null,"Hobby"]
[null,null,null,null,null,"Kleidung"]
[null,null,null,null,null,"9"]
[null,null,null,null,null,"10"]
[null,null,null,null,null,"11"]
[null,null,null,null,null,"12"]
[null,null,null,null,null,"13"]
[null,null,null,null,null,"14"]
[null,null,null,null,null,"15"]
[null,null,null,null,null,"16"]
[null,null,null,null,null,"17"]
[null,null,null,null,null,"18"]
[null,null,null,null,null,"19"]
[null,null,null,null,null,"20"]
[]
[null,"Lizensierung"]
[null,"Name:",null,null,null,null,null,null,null,null,{"$f":"LEN(F1133)","v":0}]
[null,"Vorname:",null,null,null,null,null,null,null,null,{"$f":"LEN(F1134)","v":0}]
[null,"Straße:",null,null,null,null,null,null,null,null,{"$f":"LEN(F1135)","v":0}]
[null,"PLZ:",null,null,null,null,null,null,null,null,{"$f":"LEN(F1136)","v":0}]
[null,"Ort:",null,null,null,null,null,null,null,null,{"$f":"LEN(F1137)","v":0}]
[null,null,null,null,null,null,null,null,null,null,{"$f":"SUM(K1133:K1137)","v":0}]
[null,"Freischaltcode eingeben:"]
[null,null,null,null,null,{"$f":"EXACT(F1136-K1137+('2016'!K1133*'2016'!K1134)*'2016'!K1135&K1138*K1135,F1139)","v":false},null,null,null,null,{"$f":"(K1136-K1137+('2016'!K1133*'2016'!K1134)*'2016'!K1135&K1138*K1135)","v":"00"}]
[]
[]
[]
[]
[]
[]
[]
[]
[]
[]
[]
[]
[]
[]
[]
[]
[]
[]
[]
[]
[]
[]
[]
[]
[]
[]
[]
[]
[]
[]
[]
[]
[]
[]
[]
[]
[]
[]
[]
[]
[]
[]
[]
[]
[]
[]
[]
[]
[]
[]
[]
[]
[]
[]
[]
[]
[]
[]
[null,null,null,null,"Kostenkontrolle Haushaltsbuch 2.03"]
[null,null,null,null,"Vielen Dank, dass Sie sich für den Einsatz von \n\"Kostenkontrolle Haushaltsbuch 2.03\" \nentschieden haben.\n\nDies ist die kostenlose Testversion. \nDie Testversion ist voll funktionsfähig und hat keinerlei Einschränkungen. \nEs erscheinen lediglich Hinweisfenster die hierauf hinweisen. \n\nFür den Erwerb der Vollversion zum Preis von 5,00 Euro müssen \nSie nur Ihre Angaben eintragen unter:\n\n\n\nDie Vollversion bietet folgende Vorteile:\n- Keine Hinweisbildschirme wie diesen\n- Sie erhalten die neuste Version\n- Sie unterstützen die Pflege und Weiterentwicklung dieses Programms\n- Alle zukünftigen Updates sind für Sie kostenlos"]
[]
[]
[]
[]
[]
[]
[]
[]
[]
[]
[]
[]
[]
[]
[]
[]
[]
[]
[]
[]
[]
[]
[]
[]
[]
[]
[]
[]
[]
[]
[]
[]
[]
[]
[]
[]
[]
[]
[]
[]
[]
[]
[]
[]
[]
[]
[]
[]
[]
[]
[]
[]
[]
[]
[]
[]
[]
[]
[]
[]
[]
[]
[]
[]
[]
[]
[]
[]
[]
[]
[]
[]
[]
[]
[]
[]
[]
[]
[]
[]
[]
[]
[]
[]
[]
[]
[]
[]
[]
[]
[]
[]
[]
[]
[]
[]
[]
[]
[]
[null,"Kostenkontrolle-Haushaltsbuch   -   Version 2.03",null,null,null,null,null,{"$f":"TODAY()","v":"2016-04-01"}]
[]
[]
[]
[]
[]
[]
[]
[]
[]
[]
[]
[]
[]
[]
[]
[]
[]
[]
[]
[]
[]
[]
[]
[]
[]
[]
[]
[]
[]
[]
[]
[]
[]
[]
[]
[]
[]
[]
[]
[]
[]
[]
[]
[]
[]
[]
[]
[]
[]
[]
[]
[]
[]
[]
[]
[]
[]
[]
[]
[]
[]
[]
[]
[]
[]
[]
[]
[]
[]
[]
[]
[]
[]
[]
[]
[]
[]
[]
[]
[]
[]
[]
[]
[]
[]
[]
[]
[]
[]
[]
[]
[]
[]
[]
[]
[]
[]
[]
[null,null,null,null,null,"Bei Anregungen, Fragen, Kritik:      "]